Workbook

Sheet Admin Info
B2: PIC NUMBER (Participant Identification Code) | C2: IST - Instituto Superior Técnico | E2: 999992983
C3: IST-ID Associação do Instituto Superior Técnico para a Investigação e Desenvolvimento | E3: 954983722
B5: Folha de cálculo elaborado por: | C5: NPI, DP
B7: Contacto administrativo (Responsável pelo NPI) | C7: Margarida Suárez | D7: margarida.suarez@tecnico.ulisboa.pt | E7: +351 21 841 98 63
B9: Este orçamento tem de ser enviado para o NPI, para verificação da viabilidade financeira do projeto
D10: Horizonte Europa Pilar 2 | E10: até 1 semana antes do deadline da call
D11: Pathfinder, Pathfinder Challenges, Transition, ERC | E11: até 2 semanas antes do deadline da call
A14: Participant | B14: Participation model | C14: context | E14: Form
A15: IST-ID | B15: Third Party Agreement with IST | C15: when human resources of IST apply to projects through IST-ID | E15: Fill in Table 3.1j
B19: Gender Equality Plan (GEP) IST | C19: https://tecnico.ulisboa.pt/en/campus-life/living-at-tecnico/diversity-and-gender-balance/
B21: Gender Equality Plan (GEP) IST-ID | C21: https://ist-id.pt/plano-de-igualdade-de-genero/

Sheet Proposal Budget
A1: Enter values in yellow cells only | F1: BUDGET FEASIBILITY
F2: Time allocation | G2: =+'A. Personnel'!D26 -> 0
B3: Call | F3: Real costs | G3: =SUM(E10:E22)-G2 -> 0
B4: Beneficiary | E4: (dropdown) | F4: Non Elegible Equipment Costs | G4: =+'C. Purchase'!E17 -> 0
B5: Acronym | F5: Other Non Elegible Costs
B6: Proposal reference | F6: Ovh 25% (IST / IST-ID) | G6: =+E24*0.25 -> 0
B7: Duration in months | F7: =IF(G7>=0,"VIÁVEL","NÃO VIÁVEL") -> VIÁVEL | G7: =E26-G3-G4-G5-G6 -> 0
B8: Principal Investigator (PI)
A9: BUDGET
A10: Estimated expenditure | B10: Estimated eligible costs | C10: A. Personnel costs/€ (a1) | E10: =+'A. Personnel'!B81 -> 0
C11: B. Subcontracting costs/€ (b)
C12: C. Purchase costs | D12: C.1 Travel and subsistence/€ (c1) | E12: =+'C. Purchase'!D10 -> 0
D13: C.2 Equipment/€ (c2) | E13: ='C. Purchase'!D17 -> 0 | F13: Only eligible costs (according to national rules)
D14: C.3 Other goods, works and services/€ (c3) | E14: =+'C. Purchase'!B31 -> 0 | F14: including CFS (Certificate on the Financial Statements): only at final payment, if threshold is reached Standard threshold (beneficiary-level): - financial statement: requested EU contribution to costs ≥ EUR 430 000 Special threshold for beneficiaries with a systems and process audit (see Article 24): financial statement: requested EU contribution to costs ≥ EUR 725 000
C15: D. Other costs categories | D15: D.1 Financial support to third parties (Actual costs) (d1)
D16: D.2 Internally invoiced goods and services (Unit costs -usual accounting practices) (d2)
D17: D.3 Transnation al access to research infrastructures (Unit costs) (d3) | F17: (OPTION for all HE and Euratom ToA (except HE IA, HE PCP/PPI, HE ERC Grants, HE EIC Grants and HE EIT KIC Actions)
D18: D.4 Virtual access to research infrastructures (Unit costs) (d4) | F18: (OPTION for all HE and Euratom ToA (except HE IA, HE PCP/PPI, HE ERC Grants, HE EIC Grants and HE EIT KIC Actions)
D19: D.5 PCP/PPI procurement costs (Actual costs) (d5) | F19: (OPTION for HE PCP/PPI)
D20: D.6 Euratom Cofund staff mobility costs (Unit costs) (d6) | F20: (OPTION for Euratom Programme Cofund Actions)
D21: D.7 ERC additional funding (Actual costs) (d7) | F21: (OPTION for HE ERC Grants)
D22: D.8 ERC additional funding (subcontracting, FSTP and internal invoiced goods and services) (Actual costs) (d8) | F22: (OPTION for HE ERC Grants)
C23: E. indirect costs/€ (e) = (F28)%* [(a1)+(c1)+(c2)+(c3)+(dx) | E23: =F23*(E10+E12+E13+E14+E21) -> 0 | F23: 25%
C24: Total eligible costs (h)=(a1)+(b)+(c1)+(c2)+(c3)+(d)+(e) | E24: =+SUM(E10:E23) -> 0
A25: Estimated income | B25: Requested EU contribution | C25: EU contribution to eligible costs | D25: Funding rate % (U) | E25: 100%
D26: Maximum EU contribution to eligible costs (l)=(U)*(h) | E26: =+E24*E25 -> 0
D27: Requested EU contribution to eligible costs/€ (Requested grant amount) (m) | E27: =+E26 -> 0
B28: Revenues | C28: Income generated by the action (n)
B29: Other sources of funding | C29: Financial contributions (o)
C30: Own resources (p)
B31: Total estimated income (q)=(m)+(n)+(o)+(p) | E31: =+SUM(E27,E28,E29,E30) -> 0

Sheet A. Personnel
A1: Personnel Costs | B1: Docentes e investigadores do quadro de pessoal | D1: Imputação horária | F1: No HE os custos de pessoal, durante a execução do projeto, são calculados com base diária ([vencimento annual+encargos sociais]/215dias). Para efeito de candidatura mantém o cálculo com base nos PM’s.
B2: Investigadores contratados pelo projeto | D2: Apenas IST-ID
B3: Bolseiros
B4: In-Kind contributions (se aplicável) | D4: Third Party Agreement (cedência recursos humanos do IST à IST-ID))
A7: Docentes com imputação horária | F7: Bolseiros a contratar | K7: Outros contratos
A8: Nome | B8: Categoria | C8: PM | D8: Custo | F8: Bolsa | G8: Meses de contrato | H8: PM | I8: Custo | K8: Tipo de contrato | L8: PM | M8: Custo
D9: =IFERROR(C9*VLOOKUP(B9,$A$34:$D$58,4,FALSE),0) -> 0.00 | H9: =+G9 -> 0 | I9: =IFERROR(G9*VLOOKUP(F9,$A$30:$D$33,4,FALSE),0) -> 0.00 | L9: =IFERROR(VLOOKUP(K9,$F$30:$H$69,3,FALSE),0) -> 0 | M9: =IFERROR(VLOOKUP(K9,$F$30:$H$69,2,FALSE),0) -> 0.00
D10: =IFERROR(C10*VLOOKUP(B10,$A$34:$D$58,4,FALSE),0) -> 0.00 | H10: 0 | I10: =IFERROR(G10*VLOOKUP(F10,$A$30:$D$33,4,FALSE),0) -> 0.00 | L10: =IFERROR(VLOOKUP(K10,$F$30:$H$69,3,FALSE),0) -> 0 | M10: 0.00
D11: 0.00 | H11: 0 | I11: 0.00 | L11: =IFERROR(VLOOKUP(K11,$F$30:$H$69,3,FALSE),0) -> 0 | M11: 0.00
D12: 0.00 | H12: 0 | I12: 0.00 | L12: 0 | M12: 0.00
D13: 0.00 | H13: 0 | I13: 0.00 | L13: 0 | M13: 0.00
D14: 0.00 | H14: 0 | I14: 0.00 | L14: 0 | M14: 0.00
D15: 0.00 | H15: 0 | I15: 0.00 | L15: 0 | M15: 0.00
D16: 0.00 | H16: 0 | I16: 0.00 | L16: 0 | M16: 0.00
D17: 0.00 | H17: 0 | I17: 0.00 | L17: 0 | M17: 0.00
D18: 0.00 | H18: 0 | I18: 0.00 | L18: 0 | M18: 0.00
D19: 0.00 | H19: 0 | I19: 0.00 | L19: 0 | M19: 0.00
D20: 0.00 | H20: 0 | I20: 0.00 | L20: 0 | M20: 0.00
D21: 0.00 | H21: 0 | I21: 0.00 | L21: 0 | M21: 0.00
D22: 0.00 | H22: 0 | I22: 0.00 | L22: 0 | M22: 0.00
D23: 0.00 | H23: 0 | I23: 0.00 | L23: 0 | M23: 0.00
D24: 0.00 | H24: 0 | I24: 0.00 | L24: 0 | M24: 0.00
D25: 0.00 | H25: 0 | I25: 0.00 | L25: 0 | M25: 0.00
A26: Total | C26: =+SUM(C9:C25) -> 0 | D26: =SUM(D9:D25) -> 0.00 | F26: Total | H26: =+SUM(H9:H25) -> 0 | I26: =+SUM(I9:I25) -> 0.00 | K26: total | L26: =+SUM(L9:L25) -> 0 | M26: =+SUM(M9:M25) -> 0.00
A29: Tipo de bolsa | B29: Valor mensal [tab regulada FCT] | C29: SSV + Seguro Ac. Pessoais [Estimativa] | D29: Custo PM | F29: Tipo/duração de contrato | G29: Custo total | H29: PM's
A30: Bolsa de Pós-Doutoramento (BIPD) | B30: 1,851.00 € | C30: 157.26 € | D30: =+B30+C30 -> 2,008.26 € | F30: Post-doc TRU 34 - 12 meses | G30: 54,112.05 | H30: 12
A31: Bolsa de Mestre (BI) | B31: 1,309.64 € | C31: 157.26 € | D31: =+B31+C31 -> 1,466.90 € | F31: Post-doc TRU 34 - 15 meses | G31: 65,415.24 | H31: 15
A32: Bolsa de Licenciado (BI) | B32: 1,040.98 € | C32: 157.26 € | D32: =+B32+C32 -> 1,198.24 € | F32: Post-doc TRU 34 - 18 meses | G32: 76,652.44 | H32: 18
A33: Bolsa de iniciação científica (BII) | B33: 651.12 € | C33: 157.26 € | D33: =+B33+C33 -> 808.38 € | F33: Post-doc TRU 34 - 20 meses | G33: 84,121.90 | H33: 20
A34: Assistente - escalão 1 | B34: 2,523.37 € | C34: 0 | D34: =(B34*1.2375*14)/11 -> 3,974.31 € | F34: Post-doc TRU 34 - 24 meses | G34: 99,192.82 | H34: 24
A35: Assistente - escalão 2 | B35: 2,609.53 € | C35: 0 | D35: =(B35*1.2375*14)/11 -> 4,110.01 € | F35: Post-doc TRU 34 - 30 meses | G35: 121,799.21 | H35: 30
A36: Assistente - escalão 3 | B36: 2,783.88 € | C36: 0 | D36: 4,384.61 € | F36: Post-doc TRU 34 - 36 meses | G36: 144,273.60 | H36: 36
A37: Assistente Estagiário - escalão 1 | B37: 1,834.93 € | C37: 0 | D37: 2,890.01 € | F37: Post-doc TRU 34 - 60 meses | G37: 234,435.15 | H37: 60
A38: Assistente Estagiário - escalão 2 | B38: 2,006.38 € | C38: 0 | D38: 3,160.05 € | F38: Post-doc TRU 38 - 12 meses | G38: 58,849.30 | H38: 12
A39: Professor Associado - escalão 1 | B39: 3,950.17 € | C39: 0 | D39: 6,221.52 € | F39: Post-doc TRU 38 - 15 meses | G39: 71,135.53 | H39: 15
A40: Professor Associado - escalão 2 | B40: 4,129.71 € | C40: 0 | D40: 6,504.29 € | F40: Post-doc TRU 38 - 18 meses | G40: 83,355.77 | H40: 18
A41: Professor Associado - escalão 3 | B41: 4,488.84 € | C41: 0 | D41: 7,069.92 € | F41: Post-doc TRU 38 - 20 meses | G41: 91,480.59 | H41: 20
A42: Professor Associado - escalão 4 | B42: 4,668.39 € | C42: 0 | D42: 7,352.71 € | F42: Post-doc TRU 38 - 24 meses | G42: 107,862.23 | H42: 24
A43: Professor Associado com Agregação - escalão 1 | B43: 4,399.05 € | C43: 0 | D43: 6,928.50 € | F43: Post-doc TRU 38 - 30 meses | G43: 132,434.70 | H43: 30
A44: Professor Associado com Agregação - escalão 3 | B44: 4,758.17 € | C44: 0 | D44: 7,494.12 € | F44: Post-doc TRU 38 - 36 meses | G44: 156,875.17 | H44: 36
A45: Professor Associado com Agregação - escalão 4 | B45: 5,117.26 € | C45: 0 | D45: 8,059.68 € | F45: Post-doc TRU 38 - 60 meses | G45: 254,901.03 | H45: 60
A46: Professor Associado com Agregação - escalão 2 | B46: 4,578.61 € | C46: 0 | D46: 7,211.31 € | F46: Post-doc TRU 44 - 12 meses | G46: 66,133.21 | H46: 12
A47: Professor Auxiliar - escalão 1 | B47: 3,501.28 € | C47: 0 | D47: 5,514.52 € | F47: Post-doc TRU 44 - 15 meses | G47: 79,930.95 | H47: 15
A48: Professor Auxiliar - escalão 2 | B48: 3,770.60 € | C48: 0 | D48: 5,938.70 € | F48: Post-doc TRU 44 - 18 meses | G48: 93,662.68 | H48: 18
A49: Professor Auxiliar - escalão 3 | B49: 4,129.71 € | C49: 0 | D49: 6,504.29 € | F49: Post-doc TRU 44 - 20 meses | G49: 102,795.17 | H49: 20
A50: Professor Auxiliar - escalão 4 | B50: 4,399.05 € | C50: 0 | D50: 6,928.50 € | F50: Post-doc TRU 44 - 24 meses | G50: 121,192.16 | H50: 24
A51: Professor Auxiliar com Agregação - escalão 1 | B51: 3,950.17 € | C51: 0 | D51: 6,221.52 € | F51: Post-doc TRU 44 - 30 meses | G51: 148,787.63 | H51: 30
A52: Professor Auxiliar com Agregação - escalão 2 | B52: 4,129.71 € | C52: 0 | D52: 6,504.29 € | F52: Post-doc TRU 44 - 36 meses | G52: 176,251.11 | H52: 36
A53: Professor Auxiliar com Agregação - escalão 3 | B53: 4,488.84 € | C53: 0 | D53: 7,069.92 € | F53: Post-doc TRU 44 - 60 meses | G53: 286,369.00 | H53: 60
A54: Professor Auxiliar com Agregação - escalão 4 | B54: 4,668.39 € | C54: 0 | D54: 7,352.71 € | F54: Post-doc TRU 49 - 12 meses | G54: 72,302.38 | H54: 12
A55: Professor Catedrático - escalão 1 | B55: 5,117.26 € | C55: 0 | D55: 8,059.68 € | F55: Post-doc TRU 49 - 15 meses | G55: 87,380.30 | H55: 15
A56: Professor Catedrático - escalão 2 | B56: 5,386.59 € | C56: 0 | D56: 8,483.88 € | F56: Post-doc TRU 49 - 18 meses | G56: 102,392.22 | H56: 18
A57: Professor Catedrático - escalão 3 | B57: 5,566.13 € | C57: 0 | D57: 8,766.65 € | F57: Post-doc TRU 49 - 20 meses | G57: 112,378.17 | H57: 20
A58: Professor Catedrático - escalão 4 | B58: 5,925.25 € | C58: 0 | D58: 9,332.27 € | F58: Post-doc TRU 49 - 24 meses | G58: 132,482.06 | H58: 24
A59: Estagiário de investigação - escalão 1 | B59: 1,834.93 € | C59: 0 | D59: 2,890.01 € | F59: Post-doc TRU 49 - 30 meses | G59: 162,637.89 | H59: 30
A60: Estagiário de investigação - escalão 2 | B60: 2,006.38 € | C60: 0 | D60: 3,160.05 € | F60: Post-doc TRU 49 - 36 meses | G60: 192,661.73 | H60: 36
A61: Assistente de investigação - escalão 1 | B61: 2,523.37 € | C61: 0 | D61: 3,974.31 € | F61: Post-doc TRU 49 - 60 meses | G61: 313,021.08 | H61: 60
A62: Assistente de investigação - escalão 2 | B62: 2,609.53 € | C62: 0 | D62: 4,110.01 € | F62: Técnico superior 12 meses | G62: 33,058.72 | H62: 12
A63: Assistente de investigação - escalão 3 | B63: 2,783.88 € | C63: 0 | D63: 4,384.61 € | F63: Técnico superior 15 meses | G63: 40,022.51 | H63: 15
A64: Investigador auxiliar - escalão 1 | B64: 3,501.28 € | C64: 0 | D64: 5,514.52 € | F64: Técnico superior 18 meses | G64: 46,860.30 | H64: 18
A65: Investigador auxiliar - escalão 2 | B65: 3,770.60 € | C65: 0 | D65: 5,938.70 € | F65: Técnico superior 20 meses | G65: 51,416.83 | H65: 20
A66: Investigador auxiliar - escalão 3 | B66: 4,129.71 € | C66: 0 | D66: 6,504.29 € | F66: Técnico superior 24 meses | G66: 60,661.89 | H66: 24
A67: Investigador auxiliar - escalão 4 | B67: 4,399.05 € | C67: 0 | D67: 6,928.50 € | F67: Técnico superior 30 meses | G67: 74,529.48 | H67: 30
A68: Investigador principal / Investigador auxiliar com habilitação ou agregação - escalão 1 | B68: 3,950.17 € | C68: 0 | D68: 6,221.52 € | F68: Técnico superior 36 meses | G68: 88,265.07 | H68: 36
A69: Investigador principal / Investigador auxiliar com habilitação ou agregação - escalão 2 | B69: 4,129.71 € | C69: 0 | D69: 6,504.29 € | F69: Técnico superior 60 meses | G69: 143,471.42 | H69: 60
A70: Investigador principal / Investigador auxiliar com habilitação ou agregação - escalão 3 | B70: 4,488.84 € | C70: 0 | D70: 7,069.92 €
A71: Investigador principal / Investigador auxiliar com habilitação ou agregação - escalão 4 | B71: 4,668.39 € | C71: 0 | D71: 7,352.71 €
A72: Investigador principal com habilitação ou agregação - escalão 1 | B72: 4,399.05 € | C72: 0 | D72: 6,928.50 €
A73: Investigador principal com habilitação ou agregação - escalão 2 | B73: 4,578.61 € | C73: 0 | D73: 7,211.31 €
A74: Investigador principal com habilitação ou agregação - escalão 3 | B74: 4,758.17 € | C74: 0 | D74: 7,494.12 €
A75: Investigador principal com habilitação ou agregação - escalão 4 | B75: 5,117.26 € | C75: 0 | D75: 8,059.68 €
A76: Investigador coordenador - escalão 1 | B76: 5,117.26 € | C76: 0 | D76: 8,059.68 €
A77: Investigador coordenador - escalão 2 | B77: 5,386.59 € | C77: 0 | D77: 8,483.88 €
A78: Investigador coordenador - escalão 3 | B78: 5,566.13 € | C78: 0 | D78: 8,766.65 €
A79: Investigador coordenador - escalão 4 | B79: 5,925.25 € | C79: 0 | D79: 9,332.27 €
A80: Total PM | B80: =+C26+H26+L26 -> 0
A81: Total € | B81: =+D26+I26+M26 -> 0
A83: Técnico superior doutorado: 1.915,46 €

Sheet C. Purchase
A3: C. Purchase costs *
A4: C1. Travel and Subsistence | B4: Average Cost | C4: Meetings/Travel | D4: Total Cost | E4: Description
D5: =+B5*C5 -> 0.00
D6: =+B6*C6 -> 0.00
D7: =+B7*C7 -> 0.00
D8: =+B8*C8 -> 0.00
D9: =B9*C9 -> 0.00
C10: Total | D10: =SUM(D5:D9) -> 0.00
A12: C2. Equipment [Please use sheet "C2. Equipment" to calculate Eligible (column E) and Ineligible (column F) costs] | B12: Total Cost | C12: Depreciation/years | D12: Elegible Cost | E12: Non Elegible Cost | F12: Description
H13: =IFERROR(IF((D13+E13)=B13,"ok","error"),0) -> ok
H14: =IFERROR(IF((D14+E14)=B14,"ok","error"),0) -> ok
H15: =IFERROR(IF((D15+E15)=B15,"ok","error"),0) -> ok
H16: =IFERROR(IF((D16+E16)=B16,"ok","error"),0) -> ok
C17: Total | D17: =SUM(D13:D16) -> 0.00 | E17: =SUM(E13:E16) -> 0.00
A19: C3. Other goods, works and services | B19: Total Cost | C19: Description
A20: Consumables
A21: Conference Fees
A22: Conference organisation
A23: Dissemination Costs
A24: CFS
A25: Analysis
A26: Reagents
A27: Publications
A28: Software licences
A29: Patents
A30: Other
A31: Total | B31: =SUM(B20:B30) -> 0.00
A35: * Note: when purchasing equipment, instruments and reagents used in R&D activities, VAT will be refunded by AT (Portuguese Tax Authority). In this cases VAT will not be a cost for the project, and should not be included in the budget.

Sheet C2. Equipment IST
C1: Enter values in yellow cells only | H1: Duration (months) | I1: =IF('Proposal Budget'!D7<>"",'Proposal Budget'!D7,"") -> 
C5: Equipment Cost (Total cost):
C7: Equipment code | F7: According to Depreciation Table "Tabela Vida Útil Equipamento" | J7: From: Decreto-Lei n.º 192/2015
C8: Período vida útil (anos) | E8: =VLOOKUP(E7,'Equipment Useful Life Table IST'!$B$4:$D$1291,3,FALSE) ->  | F8: =IFERROR(IF(E8="–","Equipment with no depreciation, ineligible cost is the equipments total cost",IF(E8="(a)","(See Notes section in tabela vida útil equipamento)",IF(E8="(b)","(See Notes section in tabela vida útil equipamento)",IF(E8="(c)","(See Notes section in tabela vida útil equipamento)","")))),"") ->  | J8: (Published in Diário da República n.º 178/2015, Série I de 2015-09-11)
C9: Taxa tabela | E9: =1/E8 -> 
C11: Coeficiente Depreciação | E11: =IF(E8=1,1,IF(E8<5,"1,5",IF(OR(E8=5,E8=6),"2","2,5"))) -> 
C12: Nova taxa | E12: =+E9*E11 -> 
C14: Anos | D14: Quotas decrescentes | E14: Quota A | F14: Depreciação | G14: Valor contabilístico | H14: Depreciação/Mês | I14: Nº Meses | J14: Valor Anual | K14: Ano a Reportar | L14: Descrição
A15: 1 | B15: =YEAR(E4) -> 1900 | C15: =IF(D15>0,A15,"0") ->  | D15: =+E5*$E$12 ->  | E15: =IFERROR(+E5/E8,0) -> 0 | F15: =IFERROR(IF(A15=E$8,E15,IF(D$15>E$15,D15,E15)),0) -> 0 | G15: =+E5-F15 -> 0 | H15: =+F15/12 -> 0.00 | I15: 12 | J15: =H15*I15 -> 0.00 | K15: =IF(L15>"0",B15,"") ->  | L15: =IF(C15=0,"",$C$44&" "&$C$47&" "&$C$45&" "&$C$46&" "&C15) ->  | M15: =IF(A15*12>=$I$1+1,0,1) ->  | N15: =IF(I1<=12,H15*I1,IF(I1<=24,12*H15+(I1-12)*H16,IF(I1<=36,12*(H15+H16)+(I1-24)*H17,IF(I1<=48,(H15+H16+H17)*12+(I1-36)*H18,IF(I1<=60,(H15+H16+H17+H18)*12+(I1-48)*H19,IF(I1<=72,(H15+H16+H17+H18+H19)*12+(I1-60)*H20,IF(I1<=84,(H15+H16+H17+H18+H19+H20)*12+(I1-72)*H21,IF(I1<=96,(H15+H16+H17+H18+H19+H20+H21)*12+(I1-84)*H22,IF(I1<=108,(H15+H16+H17+H18+H19+H20+H21+H22)*12+(I1-96)*H23,IF(I1<=120,(H15+H16+H17+H18+H19+H20+H21+H22+H23)*12+(I1-108)*H24,IF(I1<=132,(H15+H16+H17+H18+H19+H20+H21+H22+H23+H24)*12+(I1-120)*H25))))))))))) -> FALSE | O15: Eligible Cost
A16: 2 | B16: =B15+1 -> 1901 | D16: =+G15*$E$12 ->  | E16: =IFERROR(+G15/(E8-1),0) -> 0 | F16: =IFERROR(IF(A16=E$8,E16,IF(F15=E15,E16,IF(D16>E16,D16,E16))),0) -> 0 | G16: =+G15-F16 -> 0 | H16: 0.00 | I16: =IF(J16=0,"0",IF(AND(J16>0,H16>0),"12",12-I$15)) -> 0 | J16: =+H16*C$47+H15*C$48 -> 0.00 | L16: =IF(AND(C16="0",I16="0")," ",IF(C16="0",C$44&" "&C$48&" "&C$45&" "&C$46&" "&C15,IF(I16="0","",$C$44&" "&$C$47&" "&$C$45&" "&$C$46&" "&C16&" "&C$49&" "&C$48&" "&C$45&" "&C$46&" "&C15))) -> 
A17: 3 | B17: =B16+1 -> 1902 | E17: =IFERROR(+G16/(E8-2),0) -> 0 | F17: 0 | G17: 0 | H17: 0.00 | I17: 0 | J17: 0.00
A18: 4 | B18: 1903 | E18: =IFERROR(+G17/(E8-3),0) -> 0 | F18: 0 | G18: 0 | H18: 0.00 | I18: 0 | J18: 0.00
A19: 5 | B19: 1904 | E19: =IFERROR(+G18/(E8-4),0) -> 0 | F19: 0 | G19: 0 | H19: 0.00 | I19: 0 | J19: 0.00
A20: 6 | B20: 1905 | E20: =IFERROR(+G19/(E8-5),0) -> 0 | F20: 0 | G20: 0 | H20: 0.00 | I20: 0 | J20: 0.00
A21: 7 | B21: 1906 | E21: =IFERROR(+G20/(E8-6),0) -> 0 | F21: 0 | G21: 0 | H21: 0.00 | I21: 0 | J21: 0.00
A22: 8 | B22: 1907 | E22: =IFERROR(+G21/(E8-7),0) -> 0 | F22: 0 | G22: 0 | H22: 0.00 | I22: 0 | J22: 0.00
A23: 9 | B23: 1908 | E23: =IFERROR(+G22/(E8-8),0) -> 0 | F23: 0 | G23: 0 | H23: 0.00 | I23: 0 | J23: 0.00
A24: 10 | B24: 1909 | E24: =IFERROR(+G23/(E8-9),0) -> 0 | F24: 0 | G24: 0 | H24: 0.00 | I24: 0 | J24: 0.00
A25: 11 | B25: 1910 | E25: =IFERROR(+G24/(E8-10),0) -> 0 | F25: 0 | G25: 0 | H25: 0.00 | I25: 0 | J25: 0.00
C26: =IFERROR(IF(J26<>0,"Ano 12 a "&E8,0),"#N/A") -> 0 | D26: … | E26: … | F26: … | G26: … | H26: … | I26: … | J26: =E5-SUM(J15:J25) -> 0.00 | N26: =J27-N15 -> 0.00 € | O26: Ineligible Cost
F27: =SUM(F15:F25)+J26 -> 0.00 € | J27: =SUM(J15:J26) -> 0.00 €
D31: Coeficiente de Depreciação:
C32: a) | D32: 1,5 quando o período de vida útil do elemento seja inferior a cinco anos;
C33: b) | D33: 2 quando o período de vida útil do elemento seja de cinco ou seis anos;
C34: c) | D34: 2,5 quando o período de vida útil do elemento seja superior a seis anos.
D36: Método das Quotas Decrescentes:
C37: 1- | D37: A quota decrescente é apurada aplicando a nova taxa ao valor líquido do ativo no ano anterior.
C38: 2- | D38: A depreciação do ano é quota decrescente ou quota A, das duas a mais elevada
C39: 3- | D39: No último ano a depreciação é apurada por diferença de forma a que o valor líquido iguale zero.
C44: Valor de
C45: meses do
C46: período de vida útil do ano
C47: =12-(MONTH(E4))+1 -> 12
C48: =IFERROR(MOD(E8*12-I15,12),MOD(0*12-I15,12)) -> 0
C49: +
C51: 1
C52: 2
C53: 3
C54: 4
C55: 5
C56: 6
C57: 7
C58: 8
C59: 9
C60: 10
C69: Relativamente a um determinado equipamento, as entidades podem optar por apresentar uma única linha de despesa correspondente à amortização total imputável ao projeto, em função da utilização prevista desse mesmo equipamento ao longo da execução do projeto.

Sheet C2. Equip. IST-ID
C1: Enter values in yellow cells only | H1: Duration (months) | I1: =IF('Proposal Budget'!D7<>"",'Proposal Budget'!D7,"") -> 
C5: Equipment Cost (Total cost):
C7: Equipment code | F7: According to Depreciation Table "Tabela Vida Útil Equipamento"
C8: Período vida útil (anos) | E8: =VLOOKUP('C2. Equip. IST-ID'!E7,'Equip. Useful Life Table IST-ID'!$B$5:$G$162,5,FALSE) -> 
C9: Taxa tabela | E9: =1/E8 -> 
C11: Coeficiente Depreciação | E11: =IF(E8=1,1,IF(E8<5,"1,5",IF(OR(E8=5,E8=6),"2","2,5"))) -> 
C12: Nova taxa | E12: =+E9*E11 -> 
C14: Anos | D14: Quotas decrescentes | E14: Quota A | F14: Depreciação | G14: Valor contabilístico | H14: Depreciação/Mês | I14: Nº Meses | J14: Valor Anual | K14: Ano a Reportar | L14: Descrição
A15: 1 | B15: =YEAR(E4) -> 1900 | C15: =IF(D15>0,A15,"0") ->  | D15: =+E5*$E$12 ->  | E15: =IFERROR(+E5/E8,0) -> 0 | F15: =IFERROR(IF(A15=E$8,E15,IF(D$15>E$15,D15,E15)),0) -> 0 | G15: =+E5-F15 -> 0 | H15: =+F15/12 -> 0.00 | I15: 12 | J15: =H15*I15 -> 0.00 | K15: =IF(L15>"0",B15,"") ->  | L15: =IF(C15=0,"",$C$44&" "&$C$47&" "&$C$45&" "&$C$46&" "&C15) ->  | M15: =IF(A15*12>=$I$1+1,0,1) ->  | N15: =IF(I1<=12,H15*I1,IF(I1<=24,12*H15+(I1-12)*H16,IF(I1<=36,12*(H15+H16)+(I1-24)*H17,IF(I1<=48,(H15+H16+H17)*12+(I1-36)*H18,IF(I1<=60,(H15+H16+H17+H18)*12+(I1-48)*H19,IF(I1<=72,(H15+H16+H17+H18+H19)*12+(I1-60)*H20,IF(I1<=84,(H15+H16+H17+H18+H19+H20)*12+(I1-72)*H21,IF(I1<=96,(H15+H16+H17+H18+H19+H20+H21)*12+(I1-84)*H22,IF(I1<=108,(H15+H16+H17+H18+H19+H20+H21+H22)*12+(I1-96)*H23,IF(I1<=120,(H15+H16+H17+H18+H19+H20+H21+H22+H23)*12+(I1-108)*H24,IF(I1<=132,(H15+H16+H17+H18+H19+H20+H21+H22+H23+H24)*12+(I1-120)*H25))))))))))) -> FALSE | O15: Eligible Cost
A16: 2 | B16: =B15+1 -> 1901 | D16: =+G15*$E$12 ->  | E16: =IFERROR(+G15/(E8-1),0) -> 0 | F16: =IFERROR(IF(A16=E$8,E16,IF(F15=E15,E16,IF(D16>E16,D16,E16))),0) -> 0 | G16: =+G15-F16 -> 0 | H16: 0.00 | I16: =IF(J16=0,"0",IF(AND(J16>0,H16>0),"12",12-I$15)) ->  | J16: =+H16*C$47+H15*C$48 ->  | L16: =IF(AND(C16="0",I16="0")," ",IF(C16="0",C$44&" "&C$48&" "&C$45&" "&C$46&" "&C15,IF(I16="0","",$C$44&" "&$C$47&" "&$C$45&" "&$C$46&" "&C16&" "&C$49&" "&C$48&" "&C$45&" "&C$46&" "&C15))) -> 
A17: 3 | B17: =B16+1 -> 1902 | E17: =IFERROR(+G16/(E8-2),0) -> 0 | F17: 0 | G17: 0 | H17: 0.00
A18: 4 | B18: 1903 | E18: =IFERROR(+G17/(E8-3),0) -> 0 | F18: 0 | G18: 0 | H18: 0.00
A19: 5 | B19: 1904 | E19: =IFERROR(+G18/(E8-4),0) -> 0 | F19: 0 | G19: 0 | H19: 0.00
A20: 6 | B20: 1905 | E20: =IFERROR(+G19/(E8-5),0) -> 0 | F20: 0 | G20: 0 | H20: 0.00
A21: 7 | B21: 1906 | E21: =IFERROR(+G20/(E8-6),0) -> 0 | F21: 0 | G21: 0 | H21: 0.00
A22: 8 | B22: 1907 | E22: =IFERROR(+G21/(E8-7),0) -> 0 | F22: 0 | G22: 0 | H22: 0.00
A23: 9 | B23: 1908 | E23: =IFERROR(+G22/(E8-8),0) -> 0 | F23: 0 | G23: 0 | H23: 0.00
A24: 10 | B24: 1909 | E24: =IFERROR(+G23/(E8-9),0) -> 0 | F24: 0 | G24: 0 | H24: 0.00
A25: 11 | B25: 1910 | E25: =IFERROR(+G24/(E8-10),0) -> 0 | F25: 0 | G25: 0 | H25: 0.00
C26: =IFERROR(IF(J26<>0,"Ano 12 a "&E8,0),"#N/A") -> #N/A | D26: … | E26: … | F26: … | G26: … | H26: … | I26: … | J26: =E5-SUM(J15:J25) ->  | N26: =J27-N15 ->  | O26: Ineligible Cost
F27: =SUM(F15:F25)+J26 ->  | J27: =SUM(J15:J26) -> 
D31: Coeficiente de Depreciação:
C32: a) | D32: 1,5 quando o período de vida útil do elemento seja inferior a cinco anos;
C33: b) | D33: 2 quando o período de vida útil do elemento seja de cinco ou seis anos;
C34: c) | D34: 2,5 quando o período de vida útil do elemento seja superior a seis anos.
D36: Método das Quotas Decrescentes:
C37: 1- | D37: A quota decrescente é apurada aplicando a nova taxa ao valor líquido do ativo no ano anterior.
C38: 2- | D38: A depreciação do ano é quota decrescente ou quota A, das duas a mais elevada
C39: 3- | D39: No último ano a depreciação é apurada por diferença de forma a que o valor líquido iguale zero.
C44: Valor de
C45: meses do
C46: período de vida útil do ano
C47: =12-(MONTH(E4))+1 -> 12
C48: =MOD(E8*12-I15,12) -> 
C49: +
C51: 1
C52: 2
C53: 3
C54: 4
C55: 5
C56: 6
C57: 7
C58: 8
C59: 9
C60: 10
C69: Relativamente a um determinado equipamento, as entidades podem optar por apresentar uma única linha de despesa correspondente à amortização total imputável ao projeto, em função da utilização prevista desse mesmo equipamento ao longo da execução do projeto.

Sheet Teachers & Researchers
A1: 2025 | O1: 1 PM = (Vencimento anual + Encargos sociais da entidade patronal) / 11
A2: CATEGORIA | B2: ESCALÃO | O2: 1 PM = 144,45 horas
B3: 1 | E3: 2 | H3: 3 | K3: 4 | O3: Horas produtivas anuais = 1589
B4: VB | C4: Hourly rate | D4: Custo PM | E4: VB | F4: Hourly rate | G4: Custo PM | H4: VB | I4: Hourly rate | J4: Custo PM | K4: VB | L4: Hourly rate | M4: Custo PM
A5: Professor Catedrático | B5: 285 | E5: 300 | H5: 310 | K5: 330
B6: €5,117.26 | C6: =+B6*1.2375*14/1610 -> €55.07 | D6: =+C6*146.36 -> €8,059.48 | E6: €5,386.59 | F6: =+E6*1.2375*14/1610 -> €57.96 | G6: =+F6*146.36 -> €8,483.67 | H6: €5,566.13 | I6: =+H6*1.2375*14/1610 -> €59.90 | J6: =+I6*146.36 -> €8,766.44 | K6: €5,925.25 | L6: =+K6*1.2375*14/1610 -> €63.76 | M6: =+L6*146.36 -> €9,332.04
A7: Professor Associado com Agregação | B7: 245 | E7: 255 | H7: 265 | K7: 285
B8: €4,399.05 | C8: =+B8*1.2375*14/1610 -> €47.34 | D8: =+C8*146.36 -> €6,928.33 | E8: €4,578.61 | F8: =+E8*1.2375*14/1610 -> €49.27 | G8: =+F8*146.36 -> €7,211.13 | H8: €4,758.17 | I8: =+H8*1.2375*14/1610 -> €51.20 | J8: =+I8*146.36 -> €7,493.93 | K8: €5,117.26 | L8: =+K8*1.2375*14/1610 -> €55.07 | M8: =+L8*146.36 -> €8,059.48
A9: Professor Associado | B9: 220 | E9: 230 | H9: 250 | K9: 260
B10: €3,950.17 | C10: =+B10*1.2375*14/1610 -> €42.51 | D10: =+C10*146.36 -> €6,221.36 | E10: €4,129.71 | F10: =+E10*1.2375*14/1610 -> €44.44 | G10: =+F10*146.36 -> €6,504.13 | H10: €4,488.84 | I10: =+H10*1.2375*14/1610 -> €48.30 | J10: =+I10*146.36 -> €7,069.75 | K10: €4,668.39 | L10: =+K10*1.2375*14/1610 -> €50.24 | M10: =+L10*146.36 -> €7,352.53
A11: Professor Auxiliar com Agregação | B11: 220 | E11: 230 | H11: 250 | K11: 260
B12: €3,950.17 | C12: =+B12*1.2375*14/1610 -> €42.51 | D12: =+C12*146.36 -> €6,221.36 | E12: €4,129.71 | F12: =+E12*1.2375*14/1610 -> €44.44 | G12: =+F12*146.36 -> €6,504.13 | H12: €4,488.84 | I12: =+H12*1.2375*14/1610 -> €48.30 | J12: =+I12*146.36 -> €7,069.75 | K12: €4,668.39 | L12: =+K12*1.2375*14/1610 -> €50.24 | M12: =+L12*146.36 -> €7,352.53
A13: Professor Auxiliar | B13: 195 | E13: 210 | H13: 230 | K13: 245
B14: €3,501.28 | C14: =+B14*1.2375*14/1610 -> €37.68 | D14: =+C14*146.36 -> €5,514.38 | E14: €3,770.60 | F14: =+E14*1.2375*14/1610 -> €40.57 | G14: =+F14*146.36 -> €5,938.55 | H14: €4,129.71 | I14: =+H14*1.2375*14/1610 -> €44.44 | J14: =+I14*146.36 -> €6,504.13 | K14: €4,399.05 | L14: =+K14*1.2375*14/1610 -> €47.34 | M14: =+L14*146.36 -> €6,928.33
A15: Assistente | B15: 140 | E15: 145 | H15: 155
B16: €2,523.37 | C16: =+B16*1.2375*14/1610 -> €27.15 | D16: =+C16*146.36 -> €3,974.21 | E16: €2,609.53 | F16: =+E16*1.2375*14/1610 -> €28.08 | G16: =+F16*146.36 -> €4,109.91 | H16: €2,783.88 | I16: =+H16*1.2375*14/1610 -> €29.96 | J16: =+I16*146.36 -> €4,384.50
A17: Assistente Estagiário | B17: 100 | E17: 110
B18: €1,834.93 | C18: =+B18*1.2375*14/1610 -> €19.75 | D18: =+C18*146.36 -> €2,889.94 | E18: €2,006.38 | F18: =+E18*1.2375*14/1610 -> €21.59 | G18: =+F18*146.36 -> €3,159.97
A19: Investigador coordenador | B19: 285 | E19: 300 | H19: 310 | K19: 330
B20: €5,117.26 | C20: =+B20*1.2375*14/1610 -> €55.07 | D20: =+C20*146.36 -> €8,059.48 | E20: €5,386.59 | F20: =+E20*1.2375*14/1610 -> €57.96 | G20: =+F20*146.36 -> €8,483.67 | H20: €5,566.13 | I20: =+H20*1.2375*14/1610 -> €59.90 | J20: =+I20*146.36 -> €8,766.44 | K20: €5,925.25 | L20: =+K20*1.2375*14/1610 -> €63.76 | M20: =+L20*146.36 -> €9,332.04
A21: Investigador principal com habilitação ou agregação | B21: 245 | E21: 255 | H21: 265 | K21: 285
B22: €4,399.05 | C22: =+B22*1.2375*14/1610 -> €47.34 | D22: =+C22*146.36 -> €6,928.33 | E22: €4,578.61 | F22: =+E22*1.2375*14/1610 -> €49.27 | G22: =+F22*146.36 -> €7,211.13 | H22: €4,758.17 | I22: =+H22*1.2375*14/1610 -> €51.20 | J22: =+I22*146.36 -> €7,493.93 | K22: €5,117.26 | L22: =+K22*1.2375*14/1610 -> €55.07 | M22: =+L22*146.36 -> €8,059.48
A23: Investigador principal / Investigador auxiliar com habilitação ou agregação | B23: 220 | E23: 230 | H23: 250 | K23: 260
B24: €3,950.17 | C24: =+B24*1.2375*14/1610 -> €42.51 | D24: =+C24*146.36 -> €6,221.36 | E24: €4,129.71 | F24: =+E24*1.2375*14/1610 -> €44.44 | G24: =+F24*146.36 -> €6,504.13 | H24: €4,488.84 | I24: =+H24*1.2375*14/1610 -> €48.30 | J24: =+I24*146.36 -> €7,069.75 | K24: €4,668.39 | L24: =+K24*1.2375*14/1610 -> €50.24 | M24: =+L24*146.36 -> €7,352.53
A25: Investigador auxiliar | B25: 195 | E25: 210 | H25: 230 | K25: 245
B26: €3,501.28 | C26: =+B26*1.2375*14/1610 -> €37.68 | D26: =+C26*146.36 -> €5,514.38 | E26: €3,770.60 | F26: =+E26*1.2375*14/1610 -> €40.57 | G26: =+F26*146.36 -> €5,938.55 | H26: €4,129.71 | I26: =+H26*1.2375*14/1610 -> €44.44 | J26: =+I26*146.36 -> €6,504.13 | K26: €4,399.05 | L26: =+K26*1.2375*14/1610 -> €47.34 | M26: =+L26*146.36 -> €6,928.33
A27: Assistente de investigação | B27: 140 | E27: 145 | H27: 155
B28: €2,523.37 | C28: =+B28*1.2375*14/1610 -> €27.15 | D28: =+C28*146.36 -> €3,974.21 | E28: €2,609.53 | F28: =+E28*1.2375*14/1610 -> €28.08 | G28: =+F28*146.36 -> €4,109.91 | H28: €2,783.88 | I28: =+H28*1.2375*14/1610 -> €29.96 | J28: =+I28*146.36 -> €4,384.50
A29: Estagiário de investigação | B29: 100 | E29: 110
B30: €1,834.93 | C30: =+B30*1.2375*14/1610 -> €19.75 | D30: =+C30*146.36 -> €2,889.94 | E30: €2,006.38 | F30: =+E30*1.2375*14/1610 -> €21.59 | G30: =+F30*146.36 -> €3,159.97

Sheet Post docs
A1: Campo de seleção/preenchimento | C1: 2025
A2: Cálculo custos com a contratação de Investigadores doutorados (Post Docs)
A3: Preencher Venc. base mens. | B3: 2,459.95 €
A4: Índice | B4: =VLOOKUP(B5,'Ph.D. Salary level'!$H$4:$I$53,2,FALSE) -> 35 | C4: Observações | D4: Valor 12 m | E4: Valor 15m | F4: Valor 18 m | G4: Valor 20 m | H4: Valor 24 m | I4: Valor 30 m | J4: Valor 36 m | K4: Valor 60 m
A5: Vencimento base mensal | B5: =B3 -> 2,459.95 € | C5: Nível remuneratório | D5: =B5*12 -> 29,519.40 € | E5: =B5*15 -> 36,899.25 € | F5: =B5*18 -> 44,279.10 € | G5: =B5*20 -> 49,199.00 € | H5: =B5*24 -> 59,038.80 € | I5: =B5*30 -> 73,798.50 € | J5: =B5*36 -> 88,558.20 € | K5: =B5*60 -> 147,597.00 €
A6: Subsídio de refeição mensal | B6: =6*22 -> 132.00 € | C6: 22 dias uteis em média, variável mensalmente em função dos dias do mês/faltas/férias | D6: =B6*11 -> 1,452.00 € | E6: =B6*14 -> 1,848.00 € | F6: =B6*16+B6/2 -> 2,178.00 € | G6: =B6*18 -> 2,376.00 € | H6: =B6*22 -> 2,904.00 € | I6: =B6*28 -> 3,696.00 € | J6: =B6*33 -> 4,356.00 € | K6: =B6*55 -> 7,260.00 €
A7: Subsídio de férias anual | B7: =B5 -> 2,459.95 € | C7: 2 dias por cada mês de trabalho completo, até ao limite de 22 dias | D7: =B7 -> 2,459.95 € | E7: =B5*15/12 -> 3,074.94 € | F7: =B5*18/12 -> 3,689.93 € | G7: =B5*20/12 -> 4,099.92 € | H7: =B7*2 -> 4,919.90 € | I7: =(D7*2)+D7/2 -> 6,149.88 € | J7: =D7*3 -> 7,379.85 € | K7: =B7*5 -> 12,299.75 €
A8: Duodécimo Sub. Natal (mês) | B8: =B5/12 -> 205.00 € | C8: 1/12 vencimento base | D8: =B8*12 -> 2,459.95 € | E8: =B8*15 -> 3,074.94 € | F8: =B8*18 -> 3,689.93 € | G8: =B8*20 -> 4,099.92 € | H8: =B8*24 -> 4,919.90 € | I8: =B8*30 -> 6,149.88 € | J8: =B8*36 -> 7,379.85 € | K8: =B8*60 -> 12,299.75 €
A9: Caducidade | B9: =(B5/30)*18 -> 1,475.97 € | C9: 18 dias por cada ano de trabalho completo (vencimento*nº dias/30) | D9: =B9 -> 1,475.97 € | E9: =(B5/30*(18*15/12)) -> 1,844.96 € | F9: =B9+B9/2 -> 2,213.96 € | G9: =(B5/30*(18*20/12)) -> 2,459.95 € | H9: =B9*2 -> 2,951.94 € | I9: =(B9*2)+B9/2 -> 3,689.93 € | J9: =B9*3 -> 4,427.91 € | K9: =B9*5 -> 7,379.85 €
A10: Seguro Acidentes Trabalho (anual) | B10: ='Cálculo Seg. acidentes trab'!B30 -> 222.11 € | C10: valor variável consoante o valor do vencimento base | D10: =B10 -> 222.11 € | E10: =B10*(15/12) -> 277.63 € | F10: =B10*1.5 -> 333.16 € | G10: =B10*(20/12) -> 370.18 € | H10: =B10*2 -> 444.22 € | I10: =(B10*2)+B10/2 -> 555.27 € | J10: =B10*3 -> 666.32 € | K10: =D10*5 -> 1,110.54 €
A11: Férias não gozadas | B11: =B5 -> 2,459.95 € | C11: Variável em função da data de início e fim de contrato, máximo 22 dias | D11: =B11 -> 2,459.95 € | E11: =B11 -> 2,459.95 € | F11: =B11 -> 2,459.95 € | G11: =B11 -> 2,459.95 € | H11: =B11 -> 2,459.95 € | I11: =D11 -> 2,459.95 € | J11: =B11 -> 2,459.95 € | K11: =B11 -> 2,459.95 €
A12: Subsídio Férias Vincendas | B12: =B5 -> 2,459.95 € | C12: Variável em função da data de início e fim de contrato, máximo 22 dias | D12: =B12 -> 2,459.95 € | E12: =B12 -> 2,459.95 € | F12: =B12 -> 2,459.95 € | G12: =B12 -> 2,459.95 € | H12: =B12 -> 2,459.95 € | I12: =D12 -> 2,459.95 € | J12: =B12 -> 2,459.95 € | K12: =B12 -> 2,459.95 €
A13: Férias Vincendas | B13: =B5 -> 2,459.95 € | C13: Variável em função da data de início e fim de contrato, máximo 22 dias | D13: =B13 -> 2,459.95 € | E13: =B13 -> 2,459.95 € | F13: =B13 -> 2,459.95 € | G13: =B13 -> 2,459.95 € | H13: =B13 -> 2,459.95 € | I13: =D13 -> 2,459.95 € | J13: =B13 -> 2,459.95 € | K13: =B13 -> 2,459.95 €
A14: TSU (23,75%)- mensal | B14: 23.75% | C14: Taxa Social Única/Segurança Social | D14: =B14*(D8+D7+D5+D11+D12+D13) -> 9,932.05 € | E14: =B14*(E8+E7+E5+E11+E12+E13) -> 11,976.88 € | F14: =B14*(F8+F7+F5+F11+F12+F13) -> 14,021.72 € | G14: =B14*(G8+G7+G5+G11+G12+G13) -> 15,384.94 € | H14: =(H5+H7+H8+H11+H12+H13)*B14 -> 18,111.38 € | I14: =B14*(I5+I7+I8+I11+I12+I13) -> 22,201.05 € | J14: =B14*(J8+J7+J5+J11+J12+J13) -> 26,290.72 € | K14: =(K5+K7+K8+K11+K12+K13)*B14 -> 42,649.38 €
A15: FCT+FGCT (1% do vencimento base)- mês | B15: =B5*1% -> 24.60 | C15: FGCT = 0,075% + FCT = 0,925% | D15: =B15*12 -> 295.19 € | E15: =B15*15 -> 368.99 € | F15: =B15*18 -> 442.79 € | G15: =B15*20 -> 491.99 € | H15: =B15*24 -> 590.39 € | I15: =B15*30 -> 737.99 € | J15: =B15*36 -> 885.58 € | K15: =B15*60 -> 1,475.97 €
A16: Custo Publicação | B16: 100.00 | C16: Publicação em jornal nacional | D16: =B16 -> 100.00 € | E16: =B16 -> 100.00 € | F16: =B16 -> 100.00 € | G16: =B16 -> 100.00 € | H16: 100.00 € | I16: =B16 -> 100.00 € | J16: =B16 -> 100.00 € | K16: 100.00 €
A17: Custo Total | D17: =SUM(D5:D16) -> 55,296.47 € | E17: 66,845.45 € | F17: 78,328.42 € | G17: 85,961.74 € | H17: 101,360.38 € | I17: 124,458.33 € | J17: 147,424.28 € | K17: 239,552.09 €
A19: Nota: o montante correspondente a cada nível remuneratório, pode ser consultado no separador Nível Remuneratório (a célula referente ao vencimento base mensal deve ser alterada de acordo com o nível remuneratório aplicável)
A22: Custo Pessoa-mês | B22: =((B5*1.223)*14/11)+B6+(B10/11) -> 3,981.22 €
B23: =B22*11 -> 43,793.37 €

Sheet Other personnel
A1: 2025
A2: Cálculo custos com a contratação - Carreira de TÉCNICO SUPERIOR
A4: CATEGORIA | B4: POSIÇÃO REMUNERATÓRIA | C4: NÍVEL REMUNERATÓRIO DA TABELA ÚNICA | D4: VALOR
A5: Técnico Superior | B5: 01 | C5: 016 | D5: € 1,442.57
A8: Nível Remuneratório | B8: 15 | C8: Observações | D8: Valor 12 m | E8: Valor 15m | F8: Valor 18 m | G8: Valor 20 m | H8: Valor 24 m | I8: Valor 30 m | J8: Valor 36 m | K8: Valor 60 m
A9: Vencimento base mensal (VB) | B9: =D5 -> 1,442.57 € | C9: Nível remuneratório | D9: =B9*12 -> 17,310.84 € | E9: =B9*15 -> 21,638.55 € | F9: =B9*18 -> 25,966.26 € | G9: =B9*20 -> 28,851.40 € | H9: =B9*24 -> 34,621.68 € | I9: =B9*30 -> 43,277.10 € | J9: =B9*36 -> 51,932.52 € | K9: =B9*60 -> 86,554.20 €
A10: Subsídio de refeição mensal | B10: =6*22 -> 132.00 € | C10: 22 dias uteis em média, variável mensalmente em função dos dias do mês/faltas/férias | D10: =B10*11 -> 1,452.00 € | E10: =B10*14 -> 1,848.00 € | F10: =B10*16+B10/2 -> 2,178.00 € | G10: =B10*18 -> 2,376.00 € | H10: =B10*22 -> 2,904.00 € | I10: =B10*28 -> 3,696.00 € | J10: =B10*33 -> 4,356.00 € | K10: =B10*55 -> 7,260.00 €
A11: Subsídio de férias anual | B11: =B9 -> 1,442.57 € | C11: 2 dias por cada mês de trabalho completo, até ao limite de 22 dias | D11: =B11 -> 1,442.57 € | E11: =B9*15/12 -> 1,803.21 € | F11: =B11*18/12 -> 2,163.86 € | G11: =B11*20/12 -> 2,404.28 € | H11: =B11*2 -> 2,885.14 € | I11: =(D11*2)+D11/2 -> 3,606.43 € | J11: =D11*3 -> 4,327.71 € | K11: =B11*5 -> 7,212.85 €
A12: Duodécimo Sub. Natal (mês) | B12: =B9/12 -> 120.21 € | C12: 1/12 vencimento base | D12: =B12*12 -> 1,442.57 € | E12: =B12*15 -> 1,803.21 € | F12: =B12*18 -> 2,163.86 € | G12: =B12*20 -> 2,404.28 € | H12: =B12*24 -> 2,885.14 € | I12: =B12*30 -> 3,606.43 € | J12: =B12*36 -> 4,327.71 € | K12: =B12*60 -> 7,212.85 €
A13: Caducidade Contrato anual | B13: =(B9/30)*18 -> 865.54 € | C13: 18 dias por cada ano de trabalho completo (vencimento*nº dias/30) | D13: =B13 -> 865.54 € | E13: =B13+B13/4 -> 1,081.93 € | F13: =B13+B13/2 -> 1,298.31 € | G13: =B13*20/12 -> 1,442.57 € | H13: =B13*2 -> 1,731.08 € | I13: =(B13*2)+B13/2 -> 2,163.86 € | J13: =B13*3 -> 2,596.63 € | K13: =B13*5 -> 4,327.71 €
A14: Seguro Acidentes Trabalho (anual) | B14: 120.00 € | C14: valor variável consoante o valor do vencimento base | D14: =B14 -> 120.00 € | E14: =(D14/2)+D14 -> 180.00 € | F14: =B14*1.5 -> 180.00 € | G14: =B14*20/12 -> 200.00 € | H14: =B14*2 -> 240.00 € | I14: =(B14*2)+B14/2 -> 300.00 € | J14: =B14*3 -> 360.00 € | K14: =B14*5 -> 600.00 €
A15: Férias não gozadas | B15: =B9 -> 1,442.57 € | C15: Variável em função da data de início e fim de contrato, máximo 22 dias | D15: =B15 -> 1,442.57 € | E15: =B15 -> 1,442.57 € | F15: =B15 -> 1,442.57 € | G15: =B15 -> 1,442.57 € | H15: =B15 -> 1,442.57 € | I15: =D15 -> 1,442.57 € | J15: =B15 -> 1,442.57 € | K15: =B15 -> 1,442.57 €
A16: Sub. Férias Vincendas | B16: =B9 -> 1,442.57 € | C16: Variável em função da data de início e fim de contrato, máximo 22 dias | D16: =B16 -> 1,442.57 € | E16: =B16 -> 1,442.57 € | F16: =B16 -> 1,442.57 € | G16: =B16 -> 1,442.57 € | H16: =B16 -> 1,442.57 € | I16: =D16 -> 1,442.57 € | J16: =B16 -> 1,442.57 € | K16: =B16 -> 1,442.57 €
A17: Ferias Vincendas | B17: =B9 -> 1,442.57 € | C17: Variável em função da data de início e fim de contrato, máximo 22 dias | D17: =B17 -> 1,442.57 € | E17: =B17 -> 1,442.57 € | F17: =B17 -> 1,442.57 € | G17: =B17 -> 1,442.57 € | H17: =B17 -> 1,442.57 € | I17: =D17 -> 1,442.57 € | J17: =B17 -> 1,442.57 € | K17: =B17 -> 1,442.57 €
A18: TSU (23,75%)- mensal | B18: 23.75% | C18: Taxa Social Única/Segurança Social | D18: =(D9+D11+D12+D15+D16+D17)*B18 -> 5,824.38 € | E18: =(E9+E11+E12+E15+E16+E17)*B18 -> 7,023.51 € | F18: =(F9+F11+F12+F15+F16+F17)*B18 -> 8,222.65 € | G18: =(G9+G11+G1+G15+G16+G166+G12+G17)*B18 -> 9,022.07 € | H18: =(H9+H11+H12+H15+H16+H17)*B18 -> 10,620.92 € | I18: =(I9+I11+I12+I15+I16+I17)*B18 -> 13,019.19 € | J18: =(J9+J11+J12+J15+J16+J17)*B18 -> 15,417.47 € | K18: =(K9+K11+K12+K15+K16+K17)*B18 -> 25,010.56 €
A19: FCT+FGCT (1% do vencimento base)- mês | B19: =B9*1% -> 14.43 | C19: FGCT = 0,075% + FCT = 0,925% | D19: =B19*12 -> 173.11 € | E19: =B19*15 -> 216.39 € | F19: =B19*18 -> 259.66 € | G19: =B19*20 -> 288.51 € | H19: =B19*24 -> 346.22 € | I19: =B19*30 -> 432.77 € | J19: =B19*36 -> 519.33 € | K19: =B19*60 -> 865.54 €
A20: Custo Publicação | B20: 100.00 | C20: Publicação em jornal nacional | D20: =B20 -> 100.00 € | E20: =B20 -> 100.00 € | F20: =B20 -> 100.00 € | G20: =B20 -> 100.00 € | H20: 100.00 € | I20: =B20 -> 100.00 € | J20: =B20 -> 100.00 € | K20: 100.00 €
A21: Custo Total | D21: =SUM(D9:D20) -> 33,058.72 € | E21: 40,022.51 € | F21: 46,860.30 € | G21: 51,416.83 € | H21: 60,661.89 € | I21: 74,529.48 € | J21: 88,265.07 € | K21: 143,471.42 €
A25: Custo Pessoa-mês | B25: =((B9*1.223)*14/11)+B10+(B14/11) -> 2,388.33 €
B26: =B25*11 -> 26,271.68 €

Sheet Scholarships
A1: BOLSAS
A2: A atribuição de bolsas no âmbito dos projetos são objeto de concurso e contratualização por parte das entidades beneficiárias, nos termos do previsto no Estatuto do Bolseiro de Investigação (Lei n.º 40/2004, de 18 de agosto, na sua redação atual) e do Regulamento de Bolsas de Investigação da FCT.
A3: Nota: Escolher o número de meses em cada ano de contrato e número total de bolseiros
B4: Previsão custo 2025 | F4: Previsão custo 2026 | J4: Previsão custo 2027 | N4: Previsão custo 2028 | R4: Previsão custo 2029
A5: Tipo de bolsa | B5: Valor mensal [tab regulada FCT*] | C5: SSV + Seguro Ac. Pessoais * | D5: Total | E5: Nº meses | F5: Valor mensal [tab regulada FCT*] | G5: SSV + Seguro Ac. Pessoais * | H5: Total | I5: Nº meses | J5: Valor mensal [tab regulada FCT*] | K5: SSV + Seguro Ac. Pessoais * | L5: Total | M5: Nº meses | N5: Valor mensal [previsão actualização] | O5: SSV + Seguro Ac. Pessoais [Estimativa*] | P5: Total | Q5: Nº meses | R5: Valor mensal [previsão actualização] | S5: SSV + Seguro Ac. Pessoais [Estimativa*] | T5: Total | U5: Nº meses | V5: Nº bolseiros | W5: Cálculo(a) | X5: a) calcular o valor total da tipologia pelo nº de meses pretendido
A6: Atividades de I&D a realizar por doutorados (BIPD) | B6: 1,851.00 | C6: 157.26 | D6: =B6+C6 -> 2,008.26 | E6: 0 | F6: =+B6*1.03 -> 1,906.53 | G6: 161.98 | H6: =F6+G6 -> 2,068.51 | I6: 0 | J6: =+F6*1.03 -> 1,963.73 | K6: 166.84 | L6: =J6+K6 -> 2,130.56 | M6: 0 | N6: =+J6*1.03 -> 2,022.64 | O6: =+K6*1.03 -> 171.84 | P6: =N6+O6 -> 2,194.48 | Q6: 0 | R6: =+N6*1.03 -> 2,083.32 | S6: 177.00 | T6: =R6+S6 -> 2,260.31 | U6: 0 | W6: =((D6*E6)+(H6*I6)+(L6*M6)+(P6*Q6)+(T6*U6))*V6 -> 0.00 | X6: A duração da BIPD é, em regra, anual, não podendo ser concedida por períodos inferiores a três meses consecutivos, sendo renovável até ao prazo máximo de três anos.
A7: Atividades de I&D a realizar por estudantes de doutoramento ou por licenciados e mestres inscritos em cursos não conferentes de grau académico (BI) | B7: 1,309.64 | C7: 157.26 | D7: =SUM(B7:C7) -> 1,466.90 | E7: 0 | F7: 1,348.93 | G7: 161.98 | H7: =SUM(F7:G7) -> 1,510.91 | I7: 0 | J7: 1,389.40 | K7: 166.84 | L7: =SUM(J7:K7) -> 1,556.23 | M7: 0 | N7: =+J7*1.03 -> 1,431.08 | O7: 171.84 | P7: =SUM(N7:O7) -> 1,602.92 | Q7: 0 | R7: 1,474.01 | S7: 177.00 | T7: =SUM(R7:S7) -> 1,651.01 | U7: 0 | W7: =((D7*E7)+(H7*I7)+(L7*M7)+(P7*Q7)+(T7*U7))*V7 -> 0.00 | X7: A duração da BI é, em regra, anual, não podendo ser concedida por períodos inferiores a três meses consecutivos. Podem ser renovadas por períodos adicionais, até atingirem: a) Um ano, quando a bolsa tenha sido atribuída a licenciados ou mestres que se encontrem inscritos em ciclos de estudo não conferentes de grau académico; b) Dois anos, quando a bolsa tenha sido atribuída a estudante inscrito em mestrado; c) Quatro anos, quando a bolsa tenha sido atribuída a estudante inscrito em doutoramento
A8: Atividades de I&D a realizar por estudantes de mestrado, mestrado integrado ou por licenciados e mestres inscritos em cursos não conferentes de grau académico (BI) | B8: 1,040.98 | C8: 157.26 | D8: =SUM(B8:C8) -> 1,198.24 | E8: 0 | F8: 1,072.21 | G8: 161.98 | H8: =SUM(F8:G8) -> 1,234.19 | I8: 0 | J8: 1,104.38 | K8: 166.84 | L8: =SUM(J8:K8) -> 1,271.21 | M8: 0 | N8: 1,137.51 | O8: 171.84 | P8: =SUM(N8:O8) -> 1,309.35 | Q8: 0 | R8: 1,171.63 | S8: 177.00 | T8: =SUM(R8:S8) -> 1,348.63 | U8: 0 | W8: =((D8*E8)+(H8*I8)+(L8*M8)+(P8*Q8)+(T8*U8))*V8 -> 0.00
A9: Atividades de iniciação a I&D (BII) | B9: 651.12 | C9: 157.26 | D9: =SUM(B9:C9) -> 808.38 | E9: 0 | F9: 670.65 | G9: 161.98 | H9: =SUM(F9:G9) -> 832.63 | I9: 0 | J9: 690.77 | K9: 166.84 | L9: =SUM(J9:K9) -> 857.61 | M9: 0 | N9: 711.50 | O9: 171.84 | P9: =SUM(N9:O9) -> 883.34 | Q9: 0 | R9: 732.84 | S9: 177.00 | T9: =SUM(R9:S9) -> 909.84 | U9: 0 | W9: =((D9*E9)+(H9*I9)+(L9*M9)+(P9*Q9)+(T9*U9))*V9 -> 0.00 | X9: Duração mínima de três meses, podendo ser renovadas até ao prazo máximo de um ano.
A10: * Estimativas inflacionadas para assegurar eventuais aumentos da tabela em vigor: | W10: =SUM(W6:W9) -> 0.00 | X10: Colocar, de acordo com o tipo de bolsa, o montante correspondente à duração do contrato na rúbrica RH Bolsas (RESUMO ORÇAMENTO)
A12: Disponivel para consulta na seguinte página: https://www.fct.pt/wp-content/uploads/2024/02/Tabela-de-Valores-SMM_atualizacao-2024.pdf | G12: https://drh.tecnico.ulisboa.pt/files/sites/45/despacho_8532_regulamento_bolsas.pdf
G13: https://drh.tecnico.ulisboa.pt/files/sites/45/declaracao_retificacao_665.pdf
G15: Majoração de bolsas: a bolsa de valor inferior não pode, com majoração, ultrapassar o valor de bolsa imediatamente superior.

Sheet Ph.D. Salary level
A2: Tabela remuneratória única
A3: Níveis remuneratórios/Montante pecuniário (euros) | B3: Nível remuneratório (DL 57/2016) | D3: TRU 2021 | E3: TRU 2023 | F3: TRU 2024 | G3: TRU 2025 | H3: ATUAL | I3: Nível TRU
A4: 33 . . . . . . . . . . . . . . . . . . . . . . . . . . . . . . . . . 2 128,34 | B4: 1 | C4: 2,128.34 | D4: =C4+(C4*0.003) -> 2,134.73 | E4: 2,228.11 | F4: 2,294.95 | G4: 2,351.53 | H4: =+G4 -> 2,351.53 | I4: 33 | K4: DL 57/2016, artig nº 15º
A5: 34 . . . . . . . . . . . . . . . . . . . . . . . . . . . . . . . . . 2 179,83 | B5: 1 | C5: 2,179.83 | D5: =C5+(C5*0.003) -> 2,186.37 | E5: 2,280.73 | F5: 2,349.15 | G5: 2,405.73 | H5: =+G5 -> 2,405.73 | I5: 34 | K5: Nível 1 | L5: entre o nível 33 e 53
A6: 35 . . . . . . . . . . . . . . . . . . . . . . . . . . . . . . . . . 2 231,32 | B6: 1 | C6: 2,231.32 | D6: 2,238.01 | E6: 2,333.37 | F6: 2,403.37 | G6: 2,459.95 | H6: 2,459.95 | I6: 35 | K6: Nível 2 | L6: entre o nível 37 e 53
A7: 36 . . . . . . . . . . . . . . . . . . . . . . . . . . . . . . . . . 2 282,81 | B7: 1 | C7: 2,282.81 | D7: 2,289.66 | E7: 2,385.99 | F7: 2,457.57 | G7: 2,514.15 | H7: 2,514.15 | I7: 36 | K7: Nível 3 | L7: entre o nível 54 e 61
A8: 37 . . . . . . . . . . . . . . . . . . . . . . . . . . . . . . . . . 2 334,30 | B8: 1 e 2 | C8: 2,334.30 | D8: 2,341.30 | E8: 2,438.65 | F8: 2,511.81 | G8: 2,568.39 | H8: 2,568.39 | I8: 37 | K8: Nível 4 | L8: entre o nível 62 e 82
A9: 38 . . . . . . . . . . . . . . . . . . . . . . . . . . . . . . . . . 2 385,80 | B9: 1 e 2 | C9: 2,385.80 | D9: 2,392.96 | E9: 2,491.27 | F9: 2,655.01 | G9: 2,622.59 | H9: 2,622.59 | I9: 38
A10: 39 . . . . . . . . . . . . . . . . . . . . . . . . . . . . . . . . . 2 437,29 | B10: 1 e 2 | C10: 2,437.29 | D10: 2,444.60 | E10: 2,543.91 | F10: 2,620.23 | G10: 2,676.81 | H10: 2,676.81 | I10: 39
A11: 40 . . . . . . . . . . . . . . . . . . . . . . . . . . . . . . . . . 2 488,78 | B11: 1 e 2 | C11: 2,488.78 | D11: 2,496.25 | E11: 2,596.53 | F11: 2,674.43 | G11: 2,731.93 | H11: 2,731.93 | I11: 40
A12: 41 . . . . . . . . . . . . . . . . . . . . . . . . . . . . . . . . . 2 540,27 | B12: 1 e 2 | C12: 2,540.27 | D12: 2,547.89 | E12: 2,649.17 | F12: 2,728.65 | G12: 2,787.32 | H12: 2,787.32 | I12: 41
A13: 42 . . . . . . . . . . . . . . . . . . . . . . . . . . . . . . . . . 2 591,76 | B13: 1 e 2 | C13: 2,591.76 | D13: 2,599.54 | E13: 2,702.15 | F13: 2,783.21 | G13: 2,843.05 | H13: 2,843.05 | I13: 42
A14: 43 . . . . . . . . . . . . . . . . . . . . . . . . . . . . . . . . . 2 643,26 | B14: 1 e 2 | C14: 2,643.26 | D14: 2,651.19 | E14: 2,755.84 | F14: 2,838.52 | G14: 2,899.55 | H14: 2,899.55 | I14: 43
A15: 44 . . . . . . . . . . . . . . . . . . . . . . . . . . . . . . . . . 2 694,75 | B15: 1 e 2 | C15: 2,694.75 | D15: 2,702.83 | E15: 2,809.52 | F15: 2,893.81 | G15: 2,956.03 | H15: 2,956.03 | I15: 44
A16: 45 . . . . . . . . . . . . . . . . . . . . . . . . . . . . . . . . . 2 746,24 | B16: 1 e 2 | C16: 2,746.24 | D16: 2,754.48 | E16: 2,863.21 | F16: 2,949.11 | G16: 3,012.52 | H16: 3,012.52 | I16: 45
A17: 46 . . . . . . . . . . . . . . . . . . . . . . . . . . . . . . . . . 2 797,73 | B17: 1 e 2 | C17: 2,797.73 | D17: 2,806.12 | E17: 2,916.89 | F17: 3,004.40 | G17: 3,068.99 | H17: 3,068.99 | I17: 46
A18: 47 . . . . . . . . . . . . . . . . . . . . . . . . . . . . . . . . . 2 849,22 | B18: 1 e 2 | C18: 2,849.22 | D18: 2,857.77 | E18: 2,970.57 | F18: 3,059.69 | G18: 3,125.47 | H18: 3,125.47 | I18: 47
A19: 48 . . . . . . . . . . . . . . . . . . . . . . . . . . . . . . . . . 2 900,72 | B19: 1 e 2 | C19: 2,900.72 | D19: 2,909.42 | E19: 3,024.25 | F19: 3,114.98 | G19: 3,181.95 | H19: 3,181.95 | I19: 48
A20: 49 . . . . . . . . . . . . . . . . . . . . . . . . . . . . . . . . . 2 952,21 | B20: 1 e 2 | C20: 2,952.21 | D20: 2,961.07 | E20: 3,077.94 | F20: 3,170.28 | G20: 3,238.44 | H20: 3,238.44 | I20: 49
A21: 50 . . . . . . . . . . . . . . . . . . . . . . . . . . . . . . . . . 3 003,70 | B21: 1 e 2 | C21: 3,003.70 | D21: 3,012.71 | E21: 3,131.63 | F21: 3,225.58 | G21: 3,294.93 | H21: 3,294.93 | I21: 50
A22: 51 . . . . . . . . . . . . . . . . . . . . . . . . . . . . . . . . . 3 055,19 | B22: 1 e 2 | C22: 3,055.19 | D22: 3,064.36 | E22: 3,185.32 | F22: 3,280.88 | G22: 3,351.42 | H22: 3,351.42 | I22: 51
A23: 52 . . . . . . . . . . . . . . . . . . . . . . . . . . . . . . . . . 3 106,68 | B23: 1 e 2 | C23: 3,106.68 | D23: 3,116.00 | E23: 3,238.99 | F23: 3,336.16 | G23: 3,407.89 | H23: 3,407.89 | I23: 52
A24: 53 . . . . . . . . . . . . . . . . . . . . . . . . . . . . . . . . . 3 158,18 | B24: 1 e 2 | C24: 3,158.18 | D24: 3,167.65 | E24: 3,292.68 | F24: 3,391.46 | G24: 3,464.38 | H24: 3,464.38 | I24: 53
A25: 54 . . . . . . . . . . . . . . . . . . . . . . . . . . . . . . . . . 3 209,67 | B25: 3 | C25: 3,209.67 | D25: 3,219.30 | E25: 3,346.37 | F25: 3,446.76 | G25: 3,520.87 | H25: 3,520.87 | I25: 54
A26: 55 . . . . . . . . . . . . . . . . . . . . . . . . . . . . . . . . . 3 261,16 | B26: 3 | C26: 3,261.16 | D26: 3,270.94 | E26: 3,400.05 | F26: 3,502.05 | G26: 3,577.34 | H26: 3,577.34 | I26: 55
A27: 56 . . . . . . . . . . . . . . . . . . . . . . . . . . . . . . . . . 3 312,65 | B27: 3 | C27: 3,312.65 | D27: 3,322.59 | E27: 3,453.74 | F27: 3,557.35 | G27: 3,633.83 | H27: 3,633.83 | I27: 56
A28: 57 . . . . . . . . . . . . . . . . . . . . . . . . . . . . . . . . . 3 364,14 | B28: 3 | C28: 3,364.14 | D28: 3,374.23 | E28: 3,507.42 | F28: 3,612.64 | G28: 3,690.31 | H28: 3,690.31 | I28: 57
A29: 58 . . . . . . . . . . . . . . . . . . . . . . . . . . . . . . . . . 3 415,64 | B29: 3 | C29: 3,415.64 | D29: 3,425.89 | E29: 3,561.11 | F29: 3,667.94 | G29: 3,746.80 | H29: 3,746.80 | I29: 58
A30: 59 . . . . . . . . . . . . . . . . . . . . . . . . . . . . . . . . . 3 467,13 | B30: 3 | C30: 3,467.13 | D30: 3,477.53 | E30: 3,614.80 | F30: 3,723.24 | G30: 3,803.29 | H30: 3,803.29 | I30: 59
A31: 60 . . . . . . . . . . . . . . . . . . . . . . . . . . . . . . . . . 3 518,62 | B31: 3 | C31: 3,518.62 | D31: 3,529.18 | E31: 3,668.48 | F31: 3,778.53 | G31: 3,859.77 | H31: 3,859.77 | I31: 60
A32: 61 . . . . . . . . . . . . . . . . . . . . . . . . . . . . . . . . . 3 570,11 | B32: 3 | C32: 3,570.11 | D32: 3,580.82 | E32: 3,722.16 | F32: 3,833.82 | G32: 3,916.25 | H32: 3,916.25 | I32: 61
A33: 62 . . . . . . . . . . . . . . . . . . . . . . . . . . . . . . . . . 3 621,60 | B33: 4 | C33: 3,621.60 | D33: 3,632.46 | E33: 3,775.83 | F33: 3,889.10 | G33: 3,972.72 | H33: 3,972.72 | I33: 62
A34: 63 . . . . . . . . . . . . . . . . . . . . . . . . . . . . . . . . . 3 673,10 | B34: 4 | C34: 3,673.10 | D34: 3,684.12 | E34: 3,829.55 | F34: 3,944.44 | G34: 4,029.25 | H34: 4,029.25 | I34: 63
A35: 64 . . . . . . . . . . . . . . . . . . . . . . . . . . . . . . . . . 3 724,59 | B35: 4 | C35: 3,724.59 | D35: 3,735.76 | E35: 3,883.22 | F35: 3,999.72 | G35: 4,085.71 | H35: 4,085.71 | I35: 64
A36: 65 . . . . . . . . . . . . . . . . . . . . . . . . . . . . . . . . . 3 776,08 | B36: 4 | C36: 3,776.08 | D36: 3,787.41 | E36: 3,936.91 | F36: 4,055.02 | G36: 4,142.20 | H36: 4,142.20 | I36: 65
A37: 66 . . . . . . . . . . . . . . . . . . . . . . . . . . . . . . . . . 3 827,57 | B37: 4 | C37: 3,827.57 | D37: 3,839.05 | E37: 3,990.58 | F37: 4,110.30 | G37: 4,198.67 | H37: 4,198.67 | I37: 66
A38: 67 . . . . . . . . . . . . . . . . . . . . . . . . . . . . . . . . . 3 879,06 | B38: 4 | C38: 3,879.06 | D38: 3,890.70 | E38: 4,044.27 | F38: 4,165.60 | G38: 4,255.16 | H38: 4,255.16 | I38: 67
A39: 68 . . . . . . . . . . . . . . . . . . . . . . . . . . . . . . . . . 3 930,56 | B39: 4 | C39: 3,930.56 | D39: 3,942.35 | E39: 4,097.96 | F39: 4,220.90 | G39: 4,311.65 | H39: 4,311.65 | I39: 68
A40: 69 . . . . . . . . . . . . . . . . . . . . . . . . . . . . . . . . . 3 982,05 | B40: 4 | C40: 3,982.05 | D40: 3,994.00 | E40: 4,151.66 | F40: 4,276.21 | G40: 4,368.15 | H40: 4,368.15 | I40: 69
A41: 70 . . . . . . . . . . . . . . . . . . . . . . . . . . . . . . . . . 4 033,54 | B41: 4 | C41: 4,033.54 | D41: 4,045.64 | E41: 4,205.33 | F41: 4,331.49 | G41: 4,424.62 | H41: 4,424.62 | I41: 70
A42: 71 . . . . . . . . . . . . . . . . . . . . . . . . . . . . . . . . . 4 085,03 | B42: 4 | C42: 4,085.03 | D42: 4,097.29 | E42: 4,259.02 | F42: 4,386.79 | G42: 4,481.11 | H42: 4,481.11 | I42: 71
A43: 72 . . . . . . . . . . . . . . . . . . . . . . . . . . . . . . . . . 4 136,52 | B43: 4 | C43: 4,136.52 | D43: 4,148.93 | E43: 4,312.70 | F43: 4,442.08 | G43: 4,537.58 | H43: 4,537.58 | I43: 72
A44: 73 . . . . . . . . . . . . . . . . . . . . . . . . . . . . . . . . . 4 188,02 | B44: 4 | C44: 4,188.02 | D44: 4,200.58 | E44: 4,366.39 | F44: 4,497.38 | G44: 4,594.07 | H44: 4,594.07 | I44: 73
A45: 74 . . . . . . . . . . . . . . . . . . . . . . . . . . . . . . . . . 4 239,51 | B45: 4 | C45: 4,239.51 | D45: 4,252.23 | E45: 4,420.07 | F45: 4,552.67 | G45: 4,650.55 | H45: 4,650.55 | I45: 74
A46: 75 . . . . . . . . . . . . . . . . . . . . . . . . . . . . . . . . . 4 291 | B46: 4 | C46: 4,291 | D46: 4,303.87 | E46: 4,473.74 | F46: 4,607.95 | G46: 4,707.02 | H46: 4,707.02 | I46: 75
A47: 76 . . . . . . . . . . . . . . . . . . . . . . . . . . . . . . . . . 4 342,49 | B47: 4 | C47: 4,342.49 | D47: 4,355.52 | E47: 4,527.44 | F47: 4,663.26 | G47: 4,763.52 | H47: 4,763.52 | I47: 76
A48: 77 . . . . . . . . . . . . . . . . . . . . . . . . . . . . . . . . . 4 393,98 | B48: 4 | C48: 4,393.98 | D48: 4,407.16 | E48: 4,581.12 | F48: 4,718.55 | G48: 4,820.00 | H48: 4,820.00 | I48: 77
A49: 78 . . . . . . . . . . . . . . . . . . . . . . . . . . . . . . . . . 4 445,48 | B49: 4 | C49: 4,445.48 | D49: 4,458.82 | E49: 4,634.82 | F49: 4,773.86 | G49: 4,876.50 | H49: 4,876.50 | I49: 78
A50: 79 . . . . . . . . . . . . . . . . . . . . . . . . . . . . . . . . . 4 496,97 | B50: 4 | C50: 4,496.97 | D50: 4,510.46 | E50: 4,688.49 | F50: 4,829.14 | G50: 4,932.97 | H50: 4,932.97 | I50: 79
A51: 80 . . . . . . . . . . . . . . . . . . . . . . . . . . . . . . . . . 4 548,46 | B51: 4 | C51: 4,548.46 | D51: 4,562.11 | E51: 4,742.18 | F51: 4,884.45 | G51: 4,989.47 | H51: 4,989.47 | I51: 80
A52: 81 . . . . . . . . . . . . . . . . . . . . . . . . . . . . . . . . . 4 599,95 | B52: 4 | C52: 4,599.95 | D52: 4,613.75 | E52: 4,795.86 | F52: 4,939.74 | G52: 5,045.94 | H52: 5,045.94 | I52: 81
A53: 82 . . . . . . . . . . . . . . . . . . . . . . . . . . . . . . . . . 4 651,44 | B53: 4 | C53: 4,651.44 | D53: 4,665.39 | E53: 4,849.55 | F53: 4,995.04 | G53: 5,102.43 | H53: 5,102.43 | I53: 82

Sheet Equipment Useful Life Table IST
B1: 7 — Classificador complementar 2 — Cadastro e vidas úteis dos ativos fixos tangíveis, intangíveis e propriedades de investimento
A2: 42 | B2: Diário da República, 1.ª série — N.º 178 — 11 de setembro de 2015
A3: 420 | B3: Código de Bens | C3: Tipos de bens | D3: Vida útil (Anos)
A4: 4201 | B4: 42 | C4: 42 Propriedades de investimento | D4: Escolha sub-categoria
A5: 4202 | B5: 420 | C5: 420 Bens de domínio público | D5: Escolha sub-categoria
A6: 4209 | B6: 4201 | C6: Terrenos e recursos naturais* | D6: –
A7: 421 | B7: 4202 | C7: Edifícios e outras construções* | D7: (a)
A8: 422 | B8: 4209 | C8: Outros | D8: (a)
A9: 426 | B9: 421 | C9: Terrenos e recursos naturais* | D9: –
A10: 43 | B10: 422 | C10: Edifícios e outras construções* | D10: (a)
A11: 430 | B11: 426 | C11: Outras propriedades de investimento | D11: (b)
A12: 4301 | B12: 43 | C12: 43 Ativos fixos tangíveis | D12: Escolha sub-categoria
A13: 43011 | B13: 430 | C13: 430 Bens de domínio público, património histórico, artístico e cultural | D13: Escolha sub-categoria
A14: 43012 | B14: 4301 | C14: 4301 Terrenos e recursos naturais | D14: Escolha sub-categoria
A15: 43013 | B15: 43011 | C15: Terrenos incluídos em planos de urbanização com capacidade construtiva | D15: –
A16: 43014 | B16: 43012 | C16: Terrenos não incluídos em plano de urbanização — solo rural | D16: –
A17: 43019 | B17: 43013 | C17: Outros terrenos situados dentro do perímetro urbano | D17: –
A18: 4302 | B18: 43014 | C18: Recursos naturais … | D18: –
A19: 43021 | B19: 43019 | C19: Outros terrenos e outros recursos naturais | D19: –
A20: 43022 | B20: 4302 | C20: 4302 Edifícios e outras construções | D20: Escolha sub-categoria
A21: 43023 | B21: 43021 | C21: Habitações e edificações para serviços … | D21: (a)
A22: 43024 | B22: 43022 | C22: Edificações para fins industriais … | D22: (a)
A23: 43025 | B23: 43023 | C23: Edifícios e construções com finalidade sociocultural … | D23: (a)
A24: 43026 | B24: 43024 | C24: Parques de estacionamento … | D24: (a)
A25: 43027 | B25: 43025 | C25: Piscinas e complexos desportivos … | D25: (a)
A26: 43028 | B26: 43026 | C26: Cemitérios … | D26: (a)
A27: 43029 | B27: 43027 | C27: Barragens … | D27: (a)
A28: 4303 | B28: 43028 | C28: Edifícios e outras construções militares … | D28: (a)
A29: 43031 | B29: 43029 | C29: Outros | D29: (b)
A30: 43032 | B30: 4303 | C30: 4303 Infraestruturas | D30: Escolha sub-categoria
A31: 43033 | B31: 43031 | C31: Rodoviárias | D31: 20
A32: 43034 | B32: 43032 | C32: Ferroviárias | D32: 20
A33: 43035 | B33: 43033 | C33: Portuárias | D33: 20
A34: 43036 | B34: 43034 | C34: Aeroportuárias | D34: 20
A35: 43037 | B35: 43035 | C35: Sistemas de esgotos | D35: 20
A36: 43038 | B36: 43036 | C36: Sistemas de abastecimento de água | D36: 20
A37: 43039 | B37: 43037 | C37: Redes de comunicações | D37: 10
A38: 4304 | B38: 43038 | C38: Infraestruturas militares | D38: 20
A39: 43041 | B39: 43039 | C39: Outras infraestruturas | D39: 10
A40: 43042 | B40: 4304 | C40: Outro património histórico, artístico e cultural | D40: –
A41: 43043 | B41: 43041 | C41: Espaços arqueológicos | D41: –
A42: 43044 | B42: 43042 | C42: Obras de arte, coleções e antiguidades | D42: –
A43: 43045 | C43: 1 Instrumentos científicos antigos
A44: 43049 | C44: 2 Instrumentos musicais antigos
A45: 431 | C45: 3 Pedras raras e preciosas, coleções
A46: 4311 | C46: 4 Pergaminhos e papiros
A47: 4312 | C47: 5 Pinturas antigas
A48: 4313 | C48: 6 Quadros e gravuras
A49: 4314 | C49: 7 Esculturas
A50: 4319 | C50: 8 Medalhas, coleções
A51: 432 | C51: 9 Selos
A52: 4321 | C52: 10 Objetos de arte (não inclui artigos eclesiásticos de natureza cultural)
A53: 4322 | C53: 11 Automóveis antigos …
A54: 4323 | B54: 43043 | C54: 43043 Livros, arquivos e outras publicações de bibliotecas | D54: –
A55: 4324 | C55: Livros
A56: 4325 | C56: Arquivos …
A57: 4329 | B57: 43044 | C57: 43044 Mobiliário e tapeçarias | D57: –
A58: 433 | C58: Ansas
A59: 4331 | C59: Arcas
A60: 4332 | C60: Armários
A61: 43321 | C61: Cadeirões
A62: 43322 | C62: Tapeçarias …
A63: 43323 | B63: 43045 | C63: Joalharia e artigos religiosos | D63: –
A64: 43324 | B64: 43049 | C64: 43049 Outros | D64: –
A65: 43325 | C65: Baixelas
A66: 43326 | C66: Porcelanas e loiças
A67: 43327 | C67: Cerâmicas
A68: 43328 | C68: Artesanato
A69: 43328.1 | C69: Caixas de música
A70: 43328.2 | C70: Fonógrafos
A71: 43329 | C71: Vestiário e outras indumentárias …
A72: 4333 | B72: 431 | C72: 431 Terrenos e recursos naturais | D72: Escolha sub-categoria
A73: 43331 | B73: 4311 | C73: Terrenos incluídos em planos de urbanização com capacidade construtiva … | D73: –
A74: 43332 | B74: 4312 | C74: Terrenos não incluídos em planos de urbanização — solo rural … | D74: –
A75: 43333 | B75: 4313 | C75: Outros terrenos situados dentro do perímetro urbano … | D75: –
A76: 43334 | B76: 4314 | C76: Recursos naturais … | D76: –
A77: 43335 | B77: 4319 | C77: Outros terrenos e outros recursos naturais | D77: –
A78: 43336 | B78: 432 | C78: 432 Edifícios e outras construções | D78: Escolha sub-categoria
A79: 43337 | B79: 4321 | C79: Habitações e edificações para serviços … | D79: (a)
A80: 43338 | B80: 4322 | C80: Edificações para fins industriais … | D80: (a)
A81: 43339 | B81: 4323 | C81: Edifícios e construções com finalidade sociocultural … | D81: (a)
A82: 4334 | B82: 4324 | C82: Parques de estacionamento … | D82: (a)
A83: 43341 | B83: 4325 | C83: Piscinas e complexos desportivos … | D83: (a)
A84: 43342 | B84: 4329 | C84: Outros | D84: (b)
A85: 43343 | B85: 433 | C85: 433 Equipamento básico | D85: Escolha sub-categoria
A86: 43344 | B86: 4331 | C86: Equipamento informático e de telecomunicações** … | D86: 4
A87: 43345 | B87: 4332 | C87: 4332 Equipamento para investigação e formação, de medida e de utilização técnica especial | D87: Escolha sub-categoria
A88: 43346 | B88: 43321 | C88: Equipamento e material de laboratório | D88: 5
A89: 43349 | C89: 01 Alambiques laboratoriais
A90: 4335 | C90: 02 Alicates
A91: 43351 | C91: 03 Aparelhos de ensaio
A92: 43352 | C92: 04 Aquecedores de laboratório
A93: 43353 | C93: 05 Armários
A94: 43354 | C94: 06 Bancadas
A95: 43355 | C95: 07 Câmaras misturadoras
A96: 43359 | C96: 08 Câmaras de secagem e vácuo
A97: 4336 | C97: 09 Ebuliómetros
A98: 43361 | C98: 10 Estufas
A99: 43362 | C99: 11 Estantes de laboratório
A100: 43363 | C100: 12 Fornos
A101: 43364 | C101: 13 Frigoríficos
A102: 43365 | C102: 14 Incubadoras
A103: 4337 | C103: 15 Malas para transporte de vacinas
A104: 43371.1 | C104: 16 Máquina de triturar vacinas
A105: 43371.2 | C105: 17 Mesas de laboratório
A106: 43372 | C106: 18 Microscópios e lupas binocelulares e acessórios (câmara de vidro)
A107: 43372.1 | C107: 19 Moinhos
A108: 43372.2 | C108: 20 Vulcanizadores …
A109: 43372.3 | B109: 43322 | C109: Equipamento de ensaio de propriedades físicas | D109: 5
A110: 43373 | C110: 01 Aparelho de ensaio de propriedades físicas
A111: 43373.1 | C111: 02 Baroscópios
A112: 43373.2 | C112: 03 Câmaras explosivas
A113: 43373.3 | C113: 04 Dinamómetros
A114: 43373.4 | C114: 05 Geradores de sincronismos duplos de cor
A115: 43374 | C115: 06 Máquinas de ensaio de propriedades físicas
A116: 43374.1 | C116: 07 Paquímetros
A117: 43374.2 | C117: 08 Tensímetros …
A118: 43375 | B118: 43323 | C118: Equipamento de medida | D118: 5
A119: 43376 | C119: 1. De fluxo de líquidos e de gases e de movimento mecânico
A120: 43376.1 | C120: 01 Aerómetros
A121: 43376.2 | C121: 02 Anemómetros
A122: 43376.3 | C122: 03 Aparelhos hidrostáticos
A123: 43376.4 | C123: 04 Fluxómetros
A124: 43376.5 | C124: 06 Gasómetros
A125: 43376.6 | C125: 07 Geradores
A126: 43376.7 | C126: 08 Instrumentos de medida de rotação
A127: 43376.8 | C127: 09 Sistema de purificação de gases
A128: 43376.9 | C128: 10 Transmissor, caudal
A129: 43376.10 | C129: 11 Velocímetros
A130: 43376.11 | C130: 12 Viscosímetros …
A131: 43376.12 | C131: 2. De ensaio de propriedades elétricas e eletrónicas
A132: 43376.13 | C132: 01 Amperímetros
A133: 43376.14 | C133: 02 Bolómetros
A134: 43376.15 | C134: 03 Calibradores
A135: 43376.16 | C135: 04 Estetoscópios
A136: 43376.17 | C136: 05 Frequencímetros
A137: 43376.18 | C137: 06 Galvanómetros
A138: 43379 | C138: 07 Medidor de vácuo
A139: 4338 | C139: 08 Megaóhmetros
A140: 43381 | C140: 09 Multímetros
A141: 43382 | C141: 10 Osciloscópios
A142: 43383 | C142: 11 Potenciómetros
A143: 43384 | C143: 12 Recetores -transmissores
A144: 43385 | C144: 13 Sintetizadores
A145: 43386 | C145: 14 Voltímetros
A146: 43387 | C146: 15 Wattómetros …
A147: 43388 | B147: 43324 | C147: Equipamento de análise química | D147: 5
A148: 43389 | C148: 01 Agitadores
A149: 433810 | C149: 02 Alcoómetros
A150: 433811 | C150: 03 Aparelhos para análise química
A151: 4339 | C151: 04 Baroscópios
A152: 43391 | C152: 05 Bomba de pressão de vapor
A153: 43392 | C153: 06 Bomba de vácuo
A154: 43392.1 | C154: 07 Calorímetros
A155: 43392.2 | C155: 08 Cloroscópios
A156: 434 | C156: 09 Cromatógrafos
A157: 4341 | C157: 10 Densímetros
A158: 4341.1 | C158: 11 Equipamento detetor de gás
A159: 4341.2 | C159: 12 Equipamento de ensaio bacteriológico da água
A160: 4341.3 | C160: 13 Espectrógrafos
A161: 4341.4 | C161: 14 Evaporador rotativo
A162: 4341.5 | C162: 15 Fotómetros de campo
A163: 4341.6 | C163: 16 Fluorómetros
A164: 4341.7 | C164: 17 Gasómetros
A165: 4341.8 | C165: 18 Laboratórios químicos montados em camiões
A166: 4342 | C166: 19 Máquinas de ensaio de propriedades químicas
A167: 43421 | C167: 20 Termossalinómetros
A168: 43422 | C168: 21 Vinómetros …
A169: 43423 | B169: 43325 | C169: 43325 Instrumentos astronómicos, meteorológicos e geofísicos | D169: 5
A170: 43424 | C170: 01 Altímetros
A171: 43425 | C171: 02 Anemómetros
A172: 43426 | C172: 03 Astrolábios
A173: 43427 | C173: 04 Barómetros
A174: 43428 | C174: 05 Câmaras atmosferas especiais
A175: 43429 | C175: 06 Câmaras de calibragem
A176: 4343 | C176: 07 Cataventos
A177: 43431 | C177: 08 Desumidificadores
A178: 43431.1 | C178: 09 Ecossondas
A179: 43431.2 | C179: 10 Equipamento para simulação de chuva
A180: 43431.3 | C180: 11 Higrómetros
A181: 43431.4 | C181: 12 Higroscópios
A182: 43432 | C182: 13 Instrumentos geodésicos
A183: 43433 | C183: 14 Instrumentos oceanográficos
A184: 4344 | C184: 15 Instrumentos sismográficos
A185: 43441 | C185: 16 Pluviómetros
A186: 43441.1 | C186: 17 Radares
A187: 43441.2 | C187: 18 Radiómetros
A188: 43441.3 | C188: 19 Radiossondas
A189: 43441.4 | C189: 20 Radiosteodolitos
A190: 43442 | C190: 21 Sonares
A191: 43443 | C191: 22 Termómetros
A192: 43481 | C192: 23 Termobarómetros
A193: 43442 | C193: 24 Termo -higrómetros
A194: 4349 | C194: 25 Unidades reguladoras de fluxo de ar
A195: 4349.1 | C195: 26 Visores …
A196: 4349.2 | B196: 43326 | C196: 43326 Instrumentos óticos e equipamento fotográfico e cinematográfico | D196: 5
A197: 4349.3 | C197: 01 Ampliadores
A198: 4349.4 | C198: 02 Aparelhos óticos
A199: 435 | C199: 03 Binóculos
A200: 4351 | C200: 04 Câmaras subaquáticas de filmar
... 1091 more rows

Sheet Equip. Useful Life Table IST-ID
B1: DEPRECIATION TABLE FOR EQUIPMENTS IST-ID
A2: Coluna de apoio ocultada, não utilizar | B2: EQUIPMENT CODE | D2: TYPE | E2: EQUIPMENT DESCRIPTION | F2: USEFUL LIFE
F3: YEARS | G3: TAXA
B4: GRUPO 1 - IMÓVEIS
A5: 20050001 | B5: 20050001 | C5: EDIFICAÇÕES LIGEIRAS | D5: 2005 | E5: EDIFICACOES LIGEIRAS (FIBROC.,MAD., ETC) | F5: 10 | G5: 10
A6: 20100001 | B6: 20100001 | C6: HABITACIONAIS | D6: 2010 | E6: EDIFICIOS HABITACIONAIS | F6: 50 | G6: 2
A7: 20150001 | B7: 20150001 | C7: COMERCIAIS E ADMINISTRATIVOS | D7: 2015 | E7: EDIFICIOS COMERCIAIS E ADMINISTRATIVOS | F7: 50 | G7: 2
A8: 20200001 | B8: 20200001 | C8: INDUST. OU EDIF. INTEG. EM CONJ. INDUST. | D8: 2020 | E8: EDIFICIOS INDUSTRIAIS | F8: 20 | G8: 5
A9: 20250001 | B9: 20250001 | C9: AFECTOS SERV. ENS. | D9: 2025 | E9: EDIFICIOS AFECTOS A HOTEIS, REST., ETC. | F9: 20 | G9: 5
A10: 20250002 | B10: 20250002 | C10: EDIFÍCIOS ALHEIOS | D10: 2025 | E10: EDIFICIOS AFECTOS A HOTEIS, REST., ETC. | F10: 20 | G10: 5
A11: 20250003 | B11: 20250003 | C11: TERRENO | D11: 2025 | E11: EDIFICIOS AFECTOS A HOTEIS, REST., ETC. | F11: 0
A12: 20350001 | B12: 20350001 | C12: FORNOS | D12: 2035 | E12: FORNOS | F12: 10 | G12: 10
A13: 20400001 | B13: 20400001 | C13: OBRAS HIDRÁULICAS, INC. POÇOS DE ÁGUA | D13: 2040 | E13: OBRAS HIDRAULICAS, INC. POCOS DE AGUA | F13: 20 | G13: 5
A14: 20450001 | B14: 20450001 | C14: OBRAS DE PAVIMENTAÇÃO | D14: 2045 | E14: OBRAS DE PAVIMENTACAO DE PEDRA,BETAO,ETC | F14: 20 | G14: 5
A15: 20500001 | B15: 20500001 | C15: BETÃO OU ALVENARIA | D15: 2050 | E15: PONTES E AQUEDUTOS DE BETAO OU ALVENARIA | F15: 30 | G15: 3.333333333
A16: 20550001 | B16: 20550001 | C16: MADEIRA | D16: 2055 | E16: PONTES E AQUEDUTOS DE MADEIRA | F16: 5 | G16: 20
A17: 20600001 | B17: 20600001 | C17: METÁLICOS | D17: 2060 | E17: PONTES E AQUEDUTOS METALICOS | F17: 12 | G17: 8.333333333
A18: 20650001 | B18: 20650001 | C18: RESERVATÓRIOS DE ÁGUA TORRE OU SUPERFÍCIE | D18: 2065 | E18: RESERVATORIOS DE AGUA DE TORRE OU SUPERF | F18: 20 | G18: 5
A19: 20700001 | B19: 20700001 | C19: RESERVATÓRIOS ÁGUA SUBTERRÃNEOS | D19: 2070 | E19: RESERVATORIOS DE AGUA SUBTERRANEOS | F19: 30 | G19: 3.333333333
A20: 20750001 | B20: 20750001 | C20: SILOS | D20: 2075 | E20: SILOS | F20: 20 | G20: 5
A21: 20800001 | B21: 20800001 | C21: ARRANJOS URBANÍSTICOS | D21: 2080 | E21: ARRANJOS URBANISTICOS | F21: 10 | G21: 10
A22: 20850001 | B22: 20850001 | C22: VEDAÇÕES LIGEIRAS | D22: 2085 | E22: VEDACOES LIGEIRAS | F22: 12 | G22: 8.333333333
A23: 20900001 | B23: 20900001 | C23: MUROS | D23: 2090 | E23: MUROS | F23: 20 | G23: 5
A24: 20950001 | B24: GRUPO 2 - INSTALAÇÕES
A25: 20950002 | B25: 20950001 | C25: INSTAL. ÁGUA, ELECTRIC., AR COMPRIMIDO, REFRIG. E TELEFÓNICAS | D25: 2095 | E25: INST. AGUA,ELECT.,AR COMP.,REFRIG.E TELF | F25: 10 | G25: 10
A26: 20950003 | B26: 20950002 | C26: INSTAL. ÁGUA, ELECTRIC., AR COMPRIMIDO, REFRIG. E TELEFÓNICAS | D26: 2095 | E26: INST. AGUA,ELECT.,AR COMP.,REFRIG.E TELF | F26: 10 | G26: 10
A27: 21000001 | B27: 20950003 | C27: REDES INFORMATICAS | D27: 2095 | E27: INST. AGUA,ELECT.,AR COMP.,REFRIG.E TELF | F27: 10 | G27: 10
A28: 21000002 | B28: 21000001 | C28: INSTALAÇÕES DE AQUECIMENTO CENTRAL | D28: 2100 | E28: INSTALOCOES DE AQUECIMENTO CENTRAL | F28: 15 | G28: 6.666666667
A29: 21050001 | B29: 21000002 | C29: INSTALAÇÕES DE AQUECIMENTO CENTRAL | D29: 2100 | E29: INSTALOCOES DE AQUECIMENTO CENTRAL | F29: 15 | G29: 6.666666667
A30: 21100001 | B30: 21050001 | C30: ASCENSORES, MONTA-CARGAS E ESCADAS MECÃNICAS | D30: 2105 | E30: ASCENSORES, MONTA-CARGAS E ESCADAS MECAN | F30: 10 | G30: 10
A31: 21150001 | B31: 21100001 | C31: INSTALAÇÕES DE CABOS AÉREOS E SUPORTES | D31: 2110 | E31: INST. DE CABOS AEREOS E SUPORTES | F31: 10 | G31: 10
A32: 21200001 | B32: 21150001 | C32: CALDEIRAS E ALAMBIQUES | D32: 2115 | E32: INSTALACAO DE CALDEIRAS E ALAMBIQUES | F32: 14 | G32: 7.142857143
A33: 21250001 | B33: 21200001 | C33: INSTALAÇÕES DE CAPTAÇÃO E DISTRIBUIÇÃO DE ÁGUA | D33: 2120 | E33: INST. DE CAPTACAO E DIST. DE AGUA(PRIV.) | F33: 20 | G33: 5
A34: 21300001 | B34: 21250001 | C34: INSTALAÇÕES DE CARGA, DESCARGA E EMBARQUE | D34: 2125 | E34: INST. DE CARGA, DESCARGA, E EMBARQUE | F34: 14 | G34: 7.142857143
A35: 21300002 | B35: 21300001 | C35: CENTRAIS TELEFÓNICAS PRIVATIVAS | D35: 2130 | E35: CENTRAIS TELEFONICAS PRIVATIVAS | F35: 10 | G35: 10
A36: 21350001 | B36: 21300002 | C36: CENTRAIS TELEFÓNICAS PRIVATIVAS | D36: 2130 | E36: CENTRAIS TELEFONICAS PRIVATIVAS | F36: 10 | G36: 10
A37: 21400001 | B37: 21350001 | C37: INSTALAÇÕES DE DISTRIBUIÇÃO DE COMBUSTÍVEIS | D37: 2135 | E37: INST. DE DISTRIBUICAO COMBUSTIVEIS LIQ. | F37: 10 | G37: 10
A38: 21450001 | B38: 21400001 | C38: INSTALAÇÕES DE EMBALAGEM | D38: 2140 | E38: INST. DE EMBALAGEM | F38: 10 | G38: 10
A39: 21500001 | B39: 21450001 | C39: INSTAL. DE ARMAZ. E DEPÓSITO DE BETÃO | D39: 2145 | E39: INST. DE ARMAZ. E DE DEPOSITO DE BETAO | F39: 20 | G39: 5
A40: 21550001 | B40: 21500001 | C40: INSTALAÇÕES DE ARMAZ. E DEPÓSITO DE MADEIRA | D40: 2150 | E40: INST. DE ARMAZ. E DE DEPOSITO DE MADEIRA | F40: 15 | G40: 6.666666667
A41: 21600001 | B41: 21550001 | C41: INSTALAÇÕES DE ARMAZ. E DEPÓSITO METÁLICOS | D41: 2155 | E41: INST. DE ARMAZ. E DE DEPOSITO METALICOS | F41: 12 | G41: 8.333333333
A42: 21650001 | B42: 21600001 | C42: LAGARES E PRENSAS | D42: 2160 | E42: INSTALACOES DE LAGARES E PRENSAS | F42: 14 | G42: 7.142857143
A43: 21700001 | B43: 21650001 | C43: POSTOS DE TRANSFORMAÇÃO | D43: 2165 | E43: POSTOS DE TRANSFORMACAO | F43: 20 | G43: 5
A44: 21700002 | B44: 21700001 | C44: INST. RADIOFÓNICAS, RADIOTELEG. E DE TELEVISÃO | D44: 2170 | E44: RADIOFONICAS, RADIOTEL.E TELEVISAO(PRIV) | F44: 8 | G44: 12.5
A45: 21700003 | B45: 21700002 | C45: INST. RADIOF., RADIOTEL., TELEV. (PRIVAT.) | D45: 2170 | E45: RADIOFONICAS, RADIOTEL.E TELEVISAO(PRIV) | F45: 8 | G45: 12.5
A46: 21750001 | B46: 21700003 | C46: INST. RADIOF., RADIOTEL., TELEV. (PRIVAT.) | D46: 2170 | E46: RADIOFONICAS, RADIOTEL.E TELEVISAO(PRIV) | F46: 8 | G46: 12.5
A47: 21800001 | B47: 21750001 | C47: REFEITÓRIOS E COZINHAS PRIVATIVAS | D47: 2175 | E47: REFEITORIOS E COZINHAS PRIVATIVAS | F47: 10 | G47: 10
A48: 21850001 | B48: 21800001 | C48: RESERVATÓRIOS PARA COMBUSTÍVEIS LÍQUIDOS | D48: 2180 | E48: RESERVATORIOS P/ COMBUSTIVEIS LIQUIDOS | F48: 15 | G48: 6.666666667
A49: 21860001 | B49: 21850001 | C49: VITRINES E ESTANTES FIXAS | D49: 2185 | E49: VITRINAS E ESTANTES FIXAS | F49: 8 | G49: 12.5
A50: 21860002 | B50: 21860001 | C50: ESPAÇOS EXPOSITIVOS | D50: 2186 | E50: ESPAÇOS EXPOSITIVOS CARÁCTER ITINERANTE | F50: 4 | G50: 25
A51: 21900001 | B51: 21860002 | C51: ESPAÇOS EXPOSITIVOS | D51: 2186 | E51: ESPAÇOS EXPOSITIVOS CARÁCTER ITINERANTE | F51: 4 | G51: 25
A52: 21950001 | B52: 21900001 | C52: INSTALAÇÕES DE CENTROS DE FORMAÇÃO PROFISSIONAL | D52: 2190 | E52: INST.DE CENTROS DE FORMACAO PROFISSIONAL | F52: 6 | G52: 16.66666667
A53: 22000001 | B53: 21950001 | C53: NÃO ESPECIFICADAS | D53: 2195 | E53: NÃO ESPECÍFICADAS | F53: 10 | G53: 10
A54: 22000002 | B54: GRUPO 3 - MÁQUINAS, APARELHOS E FERRAMENTAS
A55: 22000003 | B55: 22000001 | C55: APARELHAGEM MÁQ. ELECTRÓN. (EQUIP. BÁSICO) | D55: 2200 | E55: APARELHAGEM E MÁQUINAS ELECTRÓNICAS | F55: 5 | G55: 20
A56: 22000004 | B56: 22000002 | C56: APARELHAGEM MÁQ. ELECTRÓN. (EQUIP. ADMINIST.) | D56: 2200 | E56: APARELHAGEM E MÁQUINAS ELECTRÓNICAS | F56: 5 | G56: 20
A57: 22000005 | B57: 22000003 | C57: APARELHAGEM MÁQ. ELECTRÓN. (OUTROS) | D57: 2200 | E57: APARELHAGEM E MÁQUINAS ELECTRÓNICAS | F57: 5 | G57: 20
A58: 22050001 | B58: 22000004 | C58: MAQUINAS FOTOGRAFICAS (EQ. BASICO) | D58: 2200 | E58: APARELHAGEM E MÁQUINAS ELECTRÓNICAS | F58: 5 | G58: 20
A59: 22050002 | B59: 22000005 | C59: EQUIPAMENTO SEGURANÇA (EQUIP BASICO) | D59: 2200 | E59: APARELHAGEM E MÁQUINAS ELECTRÓNICAS | F59: 5 | G59: 20
A60: 22100001 | B60: 22050001 | C60: APARELHAGEM DE REPRODUÇÃO DE SOM (EQ. BÁSICO | D60: 2205 | E60: APARELHAGEM DE REPRODUCAO DE SOM | F60: 5 | G60: 20
A61: 22100002 | B61: 22050002 | C61: APARELHAGEM DE REPRODUÇAÕ DE SOM (OUTROS) | D61: 2205 | E61: APARELHAGEM DE REPRODUCAO DE SOM | F61: 5 | G61: 20
A62: 22150001 | B62: 22100001 | C62: APARELHOS DE AR CONDICIONADO (EQUIP. ADMINIST.) | D62: 2210 | E62: APARELHOS AR CONDICIONADO | F62: 8 | G62: 12.5
A63: 22150002 | B63: 22100002 | C63: APARELHOS DE AR CONDICIONADO (EQ BÁSICO) | D63: 2210 | E63: APARELHOS AR CONDICIONADO | F63: 8 | G63: 12.5
A64: 22150003 | B64: 22150001 | C64: APARELHOS DE AQUECIMENTO (OUTROS) | D64: 2215 | E64: APARELHOS AQUECIMENTO | F64: 8 | G64: 12.5
A65: 22200001 | B65: 22150002 | C65: APARELHOS DE AQUECIMENTO (EQUIP. ADMIN.) | D65: 2215 | E65: APARELHOS AQUECIMENTO | F65: 8 | G65: 12.5
A66: 22250001 | B66: 22150003 | C66: APARELHOS DE AQUECIMENTO (EQUIP. BÁSICO) | D66: 2215 | E66: APARELHOS AQUECIMENTO | F66: 8 | G66: 12.5
A67: 22300001 | B67: 22200001 | C67: APARELHOS DE LABORATÓRIO E PRECISÃO (EQUIP. BÁSICO) | D67: 2220 | E67: APARELHOS DE LABORATÓRIO E PRECISÃO | F67: 7 | G67: 14.28571429
A68: 22350001 | B68: 22250001 | C68: APARELHOS DE VENTILAÇÃO | D68: 2225 | E68: APARELHOS VENTILACAO | F68: 8 | G68: 12.5
A69: 22350002 | B69: 22300001 | C69: BALANÇAS (EQ. BÁSICO) | D69: 2230 | E69: BALANÇAS | F69: 8 | G69: 12.5
A70: 22400001 | B70: 22350001 | C70: COMPRESSORES (EQUIP. BÁSICO) | D70: 2235 | E70: COMPRESSORES | F70: 4 | G70: 25
A71: 22400002 | B71: 22350002 | C71: COMPRESSORES | D71: 2235 | E71: COMPRESSORES | F71: 4 | G71: 25
A72: 22400003 | B72: 22400001 | C72: COMPUTADORES (EQUIP. BÁSICO) | D72: 2240 | E72: COMPUTADORES | F72: 3 | G72: 33.33333333
A73: 22400004 | B73: 22400002 | C73: COMPUTADORES (EQUIP. ADMINISTRATIVO) | D73: 2240 | E73: COMPUTADORES | F73: 3 | G73: 33.33333333
A74: 22400005 | B74: 22400003 | C74: PORTATIL (EQ. BÁSICO) | D74: 2240 | E74: COMPUTADORES | F74: 3 | G74: 33.33333333
A75: 22400006 | B75: 22400004 | C75: TABLET (EQ. BÁSICO) | D75: 2240 | E75: COMPUTADORES | F75: 3 | G75: 33.33333333
A76: 22400007 | B76: 22400005 | C76: MONITOR (EQ. BÁSICO) | D76: 2240 | E76: COMPUTADORES | F76: 3 | G76: 33.33333333
A77: 22400011 | B77: 22400006 | C77: IMPRESSORA (EQ. BÁSICO) | D77: 2240 | E77: COMPUTADORES | F77: 3 | G77: 33.33333333
A78: 22400012 | B78: 22400007 | C78: EQ. INFORMÁTICO OUTRO (EQ. BÁSICO) | D78: 2240 | E78: COMPUTADORES | F78: 3 | G78: 33.33333333
A79: 22400013 | B79: 22400011 | C79: COMPUTADOR (EQ. ADMINISTRATIVO) | D79: 2240 | E79: COMPUTADORES | F79: 3 | G79: 33.33333333
A80: 22400014 | B80: 22400012 | C80: PORTATIL (EQ. ADMINISTRATIVO) | D80: 2240 | E80: COMPUTADORES | F80: 3 | G80: 33.33333333
A81: 22400015 | B81: 22400013 | C81: TABLET (EQ. ADMINISTRATIVO) | D81: 2240 | E81: COMPUTADORES | F81: 3 | G81: 33.33333333
A82: 22400016 | B82: 22400014 | C82: MONITOR (EQ. ADMINISTRATIVO) | D82: 2240 | E82: COMPUTADORES | F82: 3 | G82: 33.33333333
A83: 22450001 | B83: 22400015 | C83: IMPRESSORA (EQ. ADMINISTRATIVO) | D83: 2240 | E83: COMPUTADORES | F83: 3 | G83: 33.33333333
A84: 22450002 | B84: 22400016 | C84: EQ. INFORMATICO OUTRO (EQ. ADMINISTRATIVO) | D84: 2240 | E84: COMPUTADORES | F84: 3 | G84: 33.33333333
A85: 22450003 | B85: 22450001 | C85: EQUIP. CENTROS DE FORMAÇÃO PROFISSIONAL (EQUIP. BÁSICO) | D85: 2245 | E85: EQUIPAM. CENTROS FORMAÇÃO PROFISSIONAL | F85: 6 | G85: 16.66666667
A86: 22450004 | B86: 22450002 | C86: EQUIP. CENTROS DE FORMAÇÃO PROFISSIONAL (OUTRAS) | D86: 2245 | E86: EQUIPAM. CENTROS FORMAÇÃO PROFISSIONAL | F86: 6 | G86: 16.66666667
A87: 22500001 | B87: 22450003 | C87: EQUIP. CENTROS DE FORMAÇÃO PROFISSIONAL (EQUIP. ADMIN.) | D87: 2245 | E87: EQUIPAM. CENTROS FORMAÇÃO PROFISSIONAL | F87: 6 | G87: 16.66666667
A88: 22510001 | B88: 22450004 | C88: EQUIP. CENTROS FORM. PROFISSIONAL (2ª MÃO) | D88: 2245 | E88: EQUIPAM. CENTROS FORMAÇÃO PROFISSIONAL | F88: 3 | G88: 33.33333333
A89: 22510002 | B89: 22500001 | C89: EQUIPAMENTO DE ENERGIA SOLAR | D89: 2250 | E89: EQUIPAMENTOS DE ENERGIA SOLAR | F89: 4 | G89: 25
A90: 22550001 | B90: 22510001 | C90: APARELHOS TELEMÓVEIS (EQ. BASICO) | D90: 2251 | E90: APARELHOS TELEMOVEIS | F90: 5 | G90: 20
A91: 22600001 | B91: 22510002 | C91: TELEFONES (EQ. BASICO) | D91: 2251 | E91: APARELHOS TELEMOVEIS | F91: 5 | G91: 20
A92: 22650001 | B92: 22550001 | C92: EQUIP. OFICINAS | D92: 2255 | E92: EQUIP.OFICINAS PRIVADAS DE CARPINTARIA | F92: 8 | G92: 12.5
A93: 22650002 | B93: 22600001 | C93: EQUIP. OFICINA MECANICA | D93: 2260 | E93: EQUIP.OFIC. PRIV. SERRALHARIA E MECÂNICA | F93: 7 | G93: 14.28571429
A94: 22700001 | B94: 22650001 | C94: FERRAMENTAS E UTENSÍLIOS | D94: 2265 | E94: FERRAMENTAS E UTENSÍLIOS | F94: 4 | G94: 25
A95: 22750001 | B95: 22650002 | C95: MATERIAL DIDACTICO | D95: 2265 | E95: FERRAMENTAS E UTENSÍLIOS | F95: 4 | G95: 25
A96: 22750002 | B96: 22700001 | C96: GUINDASTES | D96: 2270 | E96: GUINDASTES | F96: 8 | G96: 12.5
A97: 22750003 | B97: 22750001 | C97: Máquinas de escrever, calcular e fotocopiar | D97: 2275 | E97: MAQ. ESCREVER, CALC., CONTAB., FOTOCOP. | F97: 5 | G97: 20
A98: 22800001 | B98: 22750002 | C98: MÁQ. ESCREVER, CALC, CONTAB., FOTOCOPIAR | D98: 2275 | E98: MAQ. ESCREVER, CALC., CONTAB., FOTOCOP. | F98: 5 | G98: 20
A99: 22900001 | B99: 22750003 | C99: PROJECTORES (EQ. BASICO) | D99: 2275 | E99: MAQ. ESCREVER, CALC., CONTAB., FOTOCOP. | F99: 5 | G99: 20
A100: 22950001 | B100: 22800001 | C100: MÁQUINAS E FERRAMENTAS | D100: 2280 | E100: MÁQUINAS-FERRAMENTAS LIGEIRAS | F100: 5 | G100: 20
A101: 22950002 | B101: 22900001 | C101: MÁQUINAS DE LAVAGEM AUTOMÁTICA VEÍCULOS | D101: 2290 | E101: MÁQUINAS LAVAGEM AUTOM. AUTOMÓVEIS | F101: 5 | G101: 20
A102: 22950003 | B102: 22950001 | C102: MÁQUINAS NÃO ESPECIFICADAS (OUTROS) | D102: 2295 | E102: MÁQUINAS NÃO ESPECIFICADAS | F102: 8 | G102: 12.5
A103: 23000001 | B103: 22950002 | C103: MÁQUINAS NÃO ESPECIFICADAS (EQUIP. BÁSICO) | D103: 2295 | E103: MÁQUINAS NÃO ESPECIFICADAS | F103: 8 | G103: 12.5
A104: 23000002 | B104: 22950003 | C104: MÁQUINAS NÃO ESPECIFICADAS (EQUIP. ADMINIST.) | D104: 2295 | E104: MÁQUINAS NÃO ESPECIFICADAS | F104: 8 | G104: 12.5
A105: 23050001 | B105: 23000001 | C105: MATERIAL DE INCÊNDIO (EXTINTORES E OUTROS) | D105: 2300 | E105: MATERIAL DE INCÊNDIO ( EXTINTORES, ETC ) | F105: 4 | G105: 25
A106: 23100001 | B106: 23000002 | C106: MATERIAL DE INCÊNDIO | D106: 2300 | E106: MATERIAL DE INCÊNDIO ( EXTINTORES, ETC ) | F106: 4 | G106: 25
A107: 23150001 | B107: 23050001 | C107: MATERIAL DE QUEIMA | D107: 2305 | E107: MATERIAL DE QUEIMA | F107: 7 | G107: 14.28571429
A108: 23150002 | B108: 23100001 | C108: MOTORES (EQ. BASICO) | D108: 2310 | E108: MOTORES | F108: 8 | G108: 12.5
A109: 23150003 | B109: 23150001 | C109: TELEVISORES/VIDEOS (EQ. BÁSICO) | D109: 2315 | E109: TELEVISORES | F109: 7 | G109: 14.28571429
A110: 23200001 | B110: 23150002 | C110: CAMARA VIDEO (EQ. BASICO) | D110: 2315 | E110: TELEVISORES | F110: 7 | G110: 14.28571429
A111: 23250001 | B111: 23150003 | C111: VIDEOPROJECTOR (EQ. BASICO) | D111: 2315 | E111: TELEVISORES | F111: 7 | G111: 14.28571429
A112: 23300001 | B112: GRUPO 4 - MATERIAL ROLANTE OU DE TRANSPORTE
A113: 23350001 | B113: 23200001 | C113: AERONAVES | D113: 2320 | E113: AERONAVES | F113: 5 | G113: 20
A114: 23400001 | B114: 23250001 | C114: BARCOS | D114: 2325 | E114: BARCOS DE FERRO | F114: 14 | G114: 7.142857143
A115: 23450001 | B115: 23300001 | C115: BARCOS | D115: 2330 | E115: BARCOS DE MADEIRA | F115: 10 | G115: 10
A116: 23500001 | B116: 23350001 | C116: BARCOS | D116: 2335 | E116: BARCOS DE BORRACHA | F116: 8 | G116: 12.5
A117: 23550001 | B117: 23400001 | C117: BICICLETAS, TRICICLOS E MOTOCICLOS | D117: 2340 | E117: BICICLETAS, TRICICLOS E MOTOCICLOS | F117: 4 | G117: 25
A118: 23600001 | B118: 23450001 | C118: TRACTORES E ATRELADOS | D118: 2345 | E118: TRACTOR.,EMPILHAD.,DUMPERS | F118: 6 | G118: 16.66666667
A119: 23650001 | B119: 23500001 | C119: VAGÕES | D119: 2350 | E119: VAGÕES | F119: 25 | G119: 4
A120: 23750001 | B120: 23550001 | C120: VEICULOS DE TRACÇÃO ANIMAL | D120: 2355 | E120: VEÍCULOS TRACÇÃO ANIMAL, ANIMAIS DE TIRO | F120: 8 | G120: 12.5
A121: 23750002 | B121: 23600001 | C121: VIAS FÉRREAS | D121: 2360 | E121: VIAS FÉRREAS NORMAIS | F121: 25 | G121: 4
A122: 23800001 | B122: 23650001 | C122: VIAS FÉRREAS | D122: 2365 | E122: VIAS( DECAUVILLE), MATERIAL ROLANTE | F122: 10 | G122: 10
A123: 23850001 | B123: 23750001 | C123: VEÍCULOS | D123: 2375 | E123: VEICULOS AUTOMOVEIS LIGEIROS E MISTOS | F123: 4 | G123: 25
A124: 23900001 | B124: 23750002 | C124: BENS ADQUIRIDOS EM ESTADO DE USO | D124: 2375 | E124: VEICULOS AUTOMOVEIS LIGEIROS E MISTOS | F124: 3 | G124: 33.33333333
A125: 23950001 | B125: 23800001 | C125: VEÍCULOS | D125: 2380 | E125: VEICULOS AUTOMOVEIS PESADOS PASSAGEIROS | F125: 7 | G125: 14.28571429
A126: 24000001 | B126: 23850001 | C126: VEICULOS | D126: 2385 | E126: VEICUL.AUTOM. PESADOS, REBOQ MERCADORIAS | F126: 5 | G126: 20
A127: 24050001 | B127: 23900001 | C127: VEÍCULOS | D127: 2390 | E127: VEICUL.AUTOM.PESADOS MERC.FORTE DESGASTE | F127: 4 | G127: 25
A128: 24050002 | B128: 23950001 | C128: TANQUES | D128: 2395 | E128: TANQUES | F128: 6 | G128: 16.66666667
A129: 24100001 | B129: GRUPO 5 - ELEMENTOS DIVERSOS
A130: 24150001 | B130: 24000001 | C130: ARTIGOS DE DECORAÇÃO | D130: 2400 | E130: CONFORTO E DECORAÇÃO - ALCATIFAS | F130: 4 | G130: 25
A131: 24200001 | B131: 24050001 | C131: OUTROS | D131: 2405 | E131: CONFORTO E DECORAÇÃO - OUTROS | F131: 8 | G131: 12.5
A132: 24200002 | B132: 24050002 | C132: OUTROS | D132: 2405 | E132: CONFORTO E DECORAÇÃO - OUTROS | F132: 8 | G132: 12.5
A133: 24250001 | B133: 24100001 | C133: ENCERADOS | D133: 2410 | E133: ENCERADOS | F133: 2 | G133: 50
A134: 24300001 | B134: 24150001 | C134: EQUIPAMENTO PUBLICITÁRIO | D134: 2415 | E134: EQUIPAMENTO PUBLICITÁRIO NA VIA PÚBLICA | F134: 8 | G134: 12.5
A135: 24300002 | B135: 24200001 | C135: LIVROS, FILMES, DISCOS E CASSETES | D135: 2420 | E135: FILMES, DISCOS E CASSETES | F135: 4 | G135: 25
A136: 24300003 | B136: 24200002 | C136: LIVROS | D136: 2420 | E136: FILMES, DISCOS E CASSETES | F136: 1 | G136: 100
A137: 24300004 | B137: 24250001 | C137: MATERIAL DE DESENHO E TOPOGRAFIA | D137: 2425 | E137: MATERIAL DE DESENHO E TOPOGRAFIA | F137: 8 | G137: 12.5
A138: 24300005 | B138: 24300001 | C138: MOBILIÁRIO (EQUIP. ADMIN.) | D138: 2430 | E138: MOBILIARIO | F138: 8 | G138: 12.5
A139: 24300006 | B139: 24300002 | C139: MOBILIÁRIO (EQUIP. BÁSICO) | D139: 2430 | E139: MOBILIARIO | F139: 8 | G139: 12.5
A140: 24300007 | B140: 24300003 | C140: MOBILIÁRIO 2ª MÃO (EQUIP. BÁSICO) | D140: 2430 | E140: MOBILIARIO | F140: 2 | G140: 50
A141: 24300008 | B141: 24300004 | C141: MOBILIÁRIO 2ª MÃO (EQUIP. ADMIN.) | D141: 2430 | E141: MOBILIARIO | F141: 2 | G141: 50
A142: 24300009 | B142: 24300005 | C142: SECRETÁRIA/MESA (EQ. BÁSICO) | D142: 2430 | E142: MOBILIARIO | F142: 8 | G142: 12.5
A143: 24300010 | B143: 24300006 | C143: CADEIRA (EQ. BÁSICO) | D143: 2430 | E143: MOBILIARIO | F143: 8 | G143: 12.5
A144: 24300011 | B144: 24300007 | C144: ARMARIO (EQ. BÁSICO) | D144: 2430 | E144: MOBILIARIO | F144: 8 | G144: 12.5
A145: 24350001 | B145: 24300008 | C145: BLOCO GAVETAS (EQ. BÁSICO) | D145: 2430 | E145: MOBILIARIO | F145: 8 | G145: 12.5
A146: 24400001 | B146: 24300009 | C146: OUTRO MOBILIÁRIO (EQ. BÁSICO) | D146: 2430 | E146: MOBILIARIO | F146: 8 | G146: 12.5
A147: 24400002 | B147: 24300010 | C147: BANCADAS LABORATORIO (EQ. BÁSICO) | D147: 2430 | E147: MOBILIARIO | F147: 8 | G147: 12.5
A148: 24400003 | B148: 24300011 | C148: ESTANTES (EQ. BÁSICO) | D148: 2430 | E148: MOBILIARIO | F148: 8 | G148: 12.5
A149: 24400004 | B149: 24350001 | C149: MOLDES | D149: 2435 | E149: MOLDES, MATRIZES, FORMAS E CUNHOS | F149: 4 | G149: 25
A150: 24450001 | B150: 24400001 | C150: PROGRAMAS DE COMPUTADOR (EQUIP. BÁSICO) | D150: 2440 | E150: PROGRAMAS DE COMPUTADORES | F150: 3 | G150: 33.33333333
A151: 24500001 | B151: 24400002 | C151: PROGRAMAS DE COMPUTADOR (EQUIP. ADMIN.) | D151: 2440 | E151: PROGRAMAS DE COMPUTADORES | F151: 3 | G151: 33.33333333
A152: 24550001 | B152: 24400003 | C152: PROGRAMAS DE COMPUTADORES | D152: 2440 | E152: PROGRAMAS DE COMPUTADORES | F152: 3 | G152: 33.33333333
A153: 24600001 | B153: 24400004 | C153: PROGRAMAS DE COMPUTADOR (LICENÇAS) | D153: 2440 | E153: PROGRAMAS DE COMPUTADORES | F153: 3 | G153: 33.33333333
A154: 24700001 | B154: 24450001 | C154: TARAS E VASILHAMES | D154: 2445 | E154: TARAS E VASILHAMES DE MADEIRA | F154: 5 | G154: 20
A155: 24750001 | B155: 24500001 | C155: TARAS E VASILHAMES | D155: 2450 | E155: TARAS E VASILHAMES DE METAL | F155: 7 | G155: 14.28571429
A156: 24750002 | B156: 24550001 | C156: TARAS E VASILHAME | D156: 2455 | E156: TARAS E VASILHAMES DE OUTROS MATERIAIS | F156: 3 | G156: 33.33333333
A157: 24759999 | B157: 24600001 | C157: DESPESAS DE INSTALAÇÃO | D157: 2460 | E157: DESPESAS DE INSTALAÇÃO | F157: 3 | G157: 33.33333333
B158: DIVISÃO III - ACTIVOS INTANGIVEIS
B159: 24700001 | C159: DESPESAS DE INVEST. E DESENVOLVIMENTO | D159: 2470 | E159: DESPESAS INVESTIGAÇÃO E DESENVOLVIMENTO | F159: 3 | G159: 33.33333333
B160: 24750001 | C160: ELEMENTOS DE PROPRIEDADE INDUSTRIAL | D160: 2475 | E160: PATENTES,MARCAS,ALVARÁS,OUTROS DIREITOS | F160: 3 | G160: 33.33333333
B161: 24750002 | C161: LICENÇAS DE SOFTWARE | D161: 2475 | E161: PATENTES,MARCAS,ALVARÁS,OUTROS DIREITOS | F161: 1 | G161: 100
B162: 24759999 | C162: LICENÇA | D162: 2475 | E162: PATENTES,MARCAS,ALVARÁS,OUTROS DIREITOS | F162: 1 | G162: 100

Sheet Cálculo Seg. acidentes trabalho (hidden)
A1: Cálculo da massa salarial do trabalhor | D1: Valor do seguro de acidentes de trabalho | J1: Valor do seguro de acidentes de trabalho | P1: Valor do seguro de acidentes de trabalho
B2: Valor | D2: (Novembro) | J2: (Junho) | P2: (Janeiro a Maio, Julho a Outubro e Dezembro)
A3: Vencimento base mensal | B3: ='Post docs'!B5 -> 2,459.95 € | H3: Valor | N3: Valor | T3: Valor
A4: Subsídio alimentação (média 22 dias/mês) | B4: =4.52*22 -> 99.44 € | D4: Total da massa salarial | E4: 1 | H4: =B8 -> 3,891.86 € | J4: Total da massa salarial | K4: 1 | N4: =B9 -> 5,121.84 € | P4: Total da massa salarial | Q4: 1 | T4: =B10 -> 2,661.89 €
A5: Subsídio férias (Junho) | B5: =B3 -> 2,459.95 € | D5: Taxa do contrato | E5: 2 | F5: 0.400% | J5: Taxa do contrato | K5: 2 | L5: 0.400% | P5: Taxa do contrato | Q5: 2 | R5: 0.400%
A6: Subsídio natal (1/24 avos) | B6: =B3/24 -> 102.50 € | D6: Prémio comercial | E6: 3 | G6: 3=1*2 | H6: =H4*F5 -> 15.57 € | J6: Prémio comercial | K6: 3 | M6: 3=1*2 | N6: =N4*L5 -> 20.49 € | P6: Prémio comercial | Q6: 3 | S6: 3=1*2 | T6: =T4*R5 -> 10.65 €
A7: Subsídio natal (50% - Novembro) | B7: =B3/2 -> 1,229.98 € | D7: Imposto de selo | E7: 4 | F7: 5.000% | G7: 4=3*4 | H7: =H6*F7 -> 0.78 € | J7: Imposto de selo | K7: 4 | L7: 5.000% | M7: 4=3*4 | N7: =N6*L7 -> 1.02 € | P7: Imposto de selo | Q7: 4 | R7: 5.000% | S7: 4=3*4 | T7: =T6*R7 -> 0.53 €
A8: Total (Novembro) | B8: =SUM(B3,B4,B6,B7) -> 3,891.86 € | D8: INEM | E8: 5 | F8: 2.500% | G8: 5=3*2,5% | H8: =H6*F8 -> 0.39 € | J8: INEM | K8: 5 | L8: 2.500% | M8: 5=3*2,5% | N8: =N6*L8 -> 0.51 € | P8: INEM | Q8: 5 | R8: 2.500% | S8: 5=3*2,5% | T8: =T6*R8 -> 0.27 €
A9: Total (Junho) | B9: =SUM(B3:B6) -> 5,121.84 € | D9: FAT | E9: 6 | F9: 0.150% | G9: 6=1*0,15% | H9: =H4*F9 -> 5.84 € | J9: FAT | K9: 6 | L9: 0.150% | M9: 6=1*0,15% | N9: =N4*L9 -> 7.68 € | P9: FAT | Q9: 6 | R9: 0.150% | S9: 6=1*0,15% | T9: =T4*R9 -> 3.99 €
A10: Total (restantes meses) | B10: =B3+B4+B6 -> 2,661.89 € | D10: Prémio (1 mês) | E10: 7 | G10: 7=3+4+5+6 | H10: =SUM(H6:H9) -> 22.57 € | J10: Prémio (1 mês) | K10: 7 | M10: 7=3+4+5+6 | N10: =SUM(N6:N9) -> 29.71 € | P10: Prémio (11 meses) | Q10: 7 | S10: 7=3+4+5+6 | T10: =SUM(T6:T9)*11 -> 169.83 €
A14: Prémio total (12 meses) | B14: =T10+N10+H10 -> 222.11 €
A20: Nota: o cálculo deve ser atualizado em função do nível remuneratório aplicável.

Sheet Cálculo Seg. acidentes trab (hidden)
A1: Contrato Investigador Carreira
A2: Cálculo da massa salarial do trabalhor | D2: Valor do seguro de acidentes de trabalho | J2: Valor do seguro de acidentes de trabalho | P2: Valor do seguro de acidentes de trabalho
B3: Valor | D3: (Novembro) | J3: (Junho) | P3: (Janeiro a Maio, Julho a Outubro e Dezembro)
A4: Vencimento base mensal | B4: =#REF! ->  | H4: Valor | N4: Valor | T4: Valor
A5: Subsídio alimentação (média 22 dias/mês) | B5: =4.52*22 -> 99.44 € | D5: Total da massa salarial | E5: 1 | H5: =B9 ->  | J5: Total da massa salarial | K5: 1 | N5: =B10 ->  | P5: Total da massa salarial | Q5: 1 | T5: =B11 -> 
A6: Subsídio férias (Junho) | B6: =B4 ->  | D6: Taxa do contrato | E6: 2 | F6: 0.400% | J6: Taxa do contrato | K6: 2 | L6: 0.400% | P6: Taxa do contrato | Q6: 2 | R6: 0.400%
A7: Subsídio natal (1/24 avos) | B7: =B4/24 ->  | D7: Prémio comercial | E7: 3 | G7: 3=1*2 | H7: =H5*F6 ->  | J7: Prémio comercial | K7: 3 | M7: 3=1*2 | N7: =N5*L6 ->  | P7: Prémio comercial | Q7: 3 | S7: 3=1*2 | T7: =T5*R6 -> 
A8: Subsídio natal (50% - Novembro) | B8: =B4/2 ->  | D8: Imposto de selo | E8: 4 | F8: 5.000% | G8: 4=3*4 | H8: =H7*F8 ->  | J8: Imposto de selo | K8: 4 | L8: 5.000% | M8: 4=3*4 | N8: =N7*L8 ->  | P8: Imposto de selo | Q8: 4 | R8: 5.000% | S8: 4=3*4 | T8: =T7*R8 -> 
A9: Total (Novembro) | B9: =SUM(B4,B5,B7,B8) ->  | D9: INEM | E9: 5 | F9: 2.500% | G9: 5=3*2,5% | H9: =H7*F9 ->  | J9: INEM | K9: 5 | L9: 2.500% | M9: 5=3*2,5% | N9: =N7*L9 ->  | P9: INEM | Q9: 5 | R9: 2.500% | S9: 5=3*2,5% | T9: =T7*R9 -> 
A10: Total (Junho) | B10: =SUM(B4:B7) ->  | D10: FAT | E10: 6 | F10: 0.150% | G10: 6=1*0,15% | H10: =H5*F10 ->  | J10: FAT | K10: 6 | L10: 0.150% | M10: 6=1*0,15% | N10: =N5*L10 ->  | P10: FAT | Q10: 6 | R10: 0.150% | S10: 6=1*0,15% | T10: =T5*R10 -> 
A11: Total (restantes meses) | B11: =B4+B5+B7 ->  | D11: Prémio (1 mês) | E11: 7 | G11: 7=3+4+5+6 | H11: =SUM(H7:H10) ->  | J11: Prémio (1 mês) | K11: 7 | M11: 7=3+4+5+6 | N11: =SUM(N7:N10) ->  | P11: Prémio (11 meses) | Q11: 7 | S11: 7=3+4+5+6 | T11: =SUM(T7:T10)*11 -> 
A13: Prémio total (12 meses) | B13: =T11+N11+H11 -> 
A14: Nota: o cálculo deve ser atualizado em função do nível remuneratório aplicável.
A18: Contrato Doutorado (DL 57_2016)
A19: Cálculo da massa salarial do trabalhor | D19: Valor do seguro de acidentes de trabalho | J19: Valor do seguro de acidentes de trabalho | P19: Valor do seguro de acidentes de trabalho
B20: Valor | D20: (Novembro) | J20: (Junho) | P20: (Janeiro a Maio, Julho a Outubro e Dezembro)
A21: Vencimento base mensal | B21: ='Post docs'!B3 -> 2,459.95 € | H21: Valor | N21: Valor | T21: Valor
A22: Subsídio alimentação (média 22 dias/mês) | B22: =4.52*22 -> 99.44 € | D22: Total da massa salarial | E22: 1 | H22: =B26 -> 3,891.86 € | J22: Total da massa salarial | K22: 1 | N22: =B27 -> 5,121.84 € | P22: Total da massa salarial | Q22: 1 | T22: =B28 -> 2,661.89 €
A23: Subsídio férias (Junho) | B23: =B21 -> 2,459.95 € | D23: Taxa do contrato | E23: 2 | F23: 0.400% | J23: Taxa do contrato | K23: 2 | L23: 0.400% | P23: Taxa do contrato | Q23: 2 | R23: 0.400%
A24: Subsídio natal (1/24 avos) | B24: =B21/24 -> 102.50 € | D24: Prémio comercial | E24: 3 | G24: 3=1*2 | H24: =H22*F23 -> 15.57 € | J24: Prémio comercial | K24: 3 | M24: 3=1*2 | N24: =N22*L23 -> 20.49 € | P24: Prémio comercial | Q24: 3 | S24: 3=1*2 | T24: =T22*R23 -> 10.65 €
A25: Subsídio natal (50% - Novembro) | B25: =B21/2 -> 1,229.98 € | D25: Imposto de selo | E25: 4 | F25: 5.000% | G25: 4=3*4 | H25: =H24*F25 -> 0.78 € | J25: Imposto de selo | K25: 4 | L25: 5.000% | M25: 4=3*4 | N25: =N24*L25 -> 1.02 € | P25: Imposto de selo | Q25: 4 | R25: 5.000% | S25: 4=3*4 | T25: =T24*R25 -> 0.53 €
A26: Total (Novembro) | B26: =SUM(B21,B22,B24,B25) -> 3,891.86 € | D26: INEM | E26: 5 | F26: 2.500% | G26: 5=3*2,5% | H26: =H24*F26 -> 0.39 € | J26: INEM | K26: 5 | L26: 2.500% | M26: 5=3*2,5% | N26: =N24*L26 -> 0.51 € | P26: INEM | Q26: 5 | R26: 2.500% | S26: 5=3*2,5% | T26: =T24*R26 -> 0.27 €
A27: Total (Junho) | B27: =SUM(B21:B24) -> 5,121.84 € | D27: FAT | E27: 6 | F27: 0.150% | G27: 6=1*0,15% | H27: =H22*F27 -> 5.84 € | J27: FAT | K27: 6 | L27: 0.150% | M27: 6=1*0,15% | N27: =N22*L27 -> 7.68 € | P27: FAT | Q27: 6 | R27: 0.150% | S27: 6=1*0,15% | T27: =T22*R27 -> 3.99 €
A28: Total (restantes meses) | B28: =B21+B22+B24 -> 2,661.89 € | D28: Prémio (1 mês) | E28: 7 | G28: 7=3+4+5+6 | H28: =SUM(H24:H27) -> 22.57 € | J28: Prémio (1 mês) | K28: 7 | M28: 7=3+4+5+6 | N28: =SUM(N24:N27) -> 29.71 € | P28: Prémio (11 meses) | Q28: 7 | S28: 7=3+4+5+6 | T28: =SUM(T24:T27)*11 -> 169.83 €
A30: Prémio total (12 meses) | B30: =T28+N28+H28 -> 222.11 €
A31: Nota: o cálculo deve ser atualizado em função do nível remuneratório aplicável.
